Workbook

Sheet Usage

Sheet Cost per kWh

Sheet Plan EFL Eval
F3: TXU, Current, Easy Saver | N3: TXU, New-Price Saver 12 | V3: TXU, New-Price Saver 18 | AD3: TXU, New-Price Saver 24 | AL3: TXU, Real Choice 24, Adjusted | AT3: Reliant, Clear Flex | BB3: Smart Deal 36 | BJ3: Smart Deal 12 (25 June 2018, Current)
E5: Plan 1 | J5: TRUE | M5: Plan 2 | R5: TRUE | U5: Plan 3 | Z5: TRUE | AC5: Plan 4 | AH5: TRUE | AK5: Plan 5 | AP5: TRUE | AS5: Plan 6 | AX5: TRUE | BA5: Plan 7 | BF5: TRUE | BI5: Plan 8 | BN5: TRUE
F6: Base Charge | I6: 9.95 | J6: =IF(I6="","",I6) -> 9.95 | N6: Base Charge | Q6: 9.95 | R6: =IF(Q6="","",Q6) -> 9.95 | V6: Base Charge | Y6: 9.95 | Z6: =IF(Y6="","",Y6) -> 9.95 | AD6: Base Charge | AG6: 9.95 | AH6: =IF(AG6="","",AG6) -> 9.95 | AL6: Base Charge | AO6: 9.95 | AP6: =IF(AO6="","",AO6) -> 9.95 | AT6: Base Charge | AW6: 9.95 | AX6: =IF(AW6="","",AW6) -> 9.95 | BB6: Base Charge | BE6: 9.95 | BF6: =IF(BE6="","",BE6) -> 9.95 | BJ6: Base Charge | BM6: 9.95 | BN6: =IF(BM6="","",BM6) -> 9.95
F7: 1st Tier | H7: 1200 | I7: 10.1 | J7: =IF(I7="","",I7/100) -> 0.101 | N7: 1st Tier | P7: 1200 | Q7: 9.3 | R7: =IF(Q7="","",Q7/100) -> 0.093 | V7: 1st Tier | X7: 1200 | Y7: 10.1 | Z7: =IF(Y7="","",Y7/100) -> 0.101 | AD7: 1st Tier | AF7: 1200 | AG7: 10.6 | AH7: =IF(AG7="","",AG7/100) -> 0.106 | AL7: 1st Tier | AN7: 1350 | AO7: 8.4 | AP7: =IF(AO7="","",AO7/100) -> 0.084 | AT7: 1st Tier | AV7: > | AW7: 8.1 | AX7: =IF(AW7="","",AW7/100) -> 0.081 | BB7: 1st Tier | BD7: 1200 | BE7: 12.2 | BF7: =IF(BE7="","",BE7/100) -> 0.122 | BJ7: 1st Tier | BL7: 1200 | BM7: 9.7 | BN7: =IF(BM7="","",BM7/100) -> 0.097
F8: 2nd Tier | H8: 2000 | I8: 5.1 | J8: =IF(I8="","",I8/100) -> 0.051 | N8: 2nd Tier | P8: 2000 | Q8: 4.7 | R8: =IF(Q8="","",Q8/100) -> 0.047 | V8: 2nd Tier | X8: 2000 | Y8: 5.1 | Z8: =IF(Y8="","",Y8/100) -> 0.051 | AD8: 2nd Tier | AF8: 2000 | AG8: 5.3 | AH8: =IF(AG8="","",AG8/100) -> 0.053 | AL8: 2nd Tier | AN8: 2000 | AO8: 1.9 | AP8: =IF(AO8="","",AO8/100) -> 0.019 | AT8: 2nd Tier | AX8: =IF(AW8="","",AW8/100) ->  | BB8: 2nd Tier | BD8: 2000 | BE8: 6.1 | BF8: =IF(BE8="","",BE8/100) -> 0.061 | BJ8: 2nd Tier | BL8: 2000 | BM8: 4.9 | BN8: =IF(BM8="","",BM8/100) -> 0.049
F9: 3rd Tier | H9: > | I9: 10.6 | J9: =IF(I9="","",I9/100) -> 0.106 | N9: 3rd Tier | P9: > | Q9: 9.8 | R9: =IF(Q9="","",Q9/100) -> 0.098 | V9: 3rd Tier | X9: > | Y9: 10.6 | Z9: =IF(Y9="","",Y9/100) -> 0.106 | AD9: 3rd Tier | AF9: > | AG9: 11.1 | AH9: =IF(AG9="","",AG9/100) -> 0.111 | AL9: 3rd Tier | AN9: > | AO9: 16 | AP9: =IF(AO9="","",AO9/100) -> 0.16 | AT9: 3rd Tier | AX9: =IF(AW9="","",AW9/100) ->  | BB9: 3rd Tier | BD9: > | BE9: 12.8 | BF9: =IF(BE9="","",BE9/100) -> 0.128 | BJ9: 3rd Tier | BL9: > | BM9: 10.2 | BN9: =IF(BM9="","",BM9/100) -> 0.102
F10: 4th Tier | J10: =IF(I10="","",I10/100) ->  | N10: 4th Tier | R10: =IF(Q10="","",Q10/100) ->  | V10: 4th Tier | Z10: =IF(Y10="","",Y10/100) ->  | AD10: 4th Tier | AH10: =IF(AG10="","",AG10/100) ->  | AL10: 4th Tier | AP10: =IF(AO10="","",AO10/100) ->  | AT10: 4th Tier | AX10: =IF(AW10="","",AW10/100) ->  | BB10: 4th Tier | BF10: =IF(BE10="","",BE10/100) ->  | BJ10: 4th Tier | BN10: =IF(BM10="","",BM10/100) -> 
F12: TDU Base | I12: 5.47 | J12: =IF(I12="","",I12) -> 5.47 | N12: TDU Base | Q12: 5.47 | R12: =IF(Q12="","",Q12) -> 5.47 | V12: TDU Base | Y12: 5.47 | Z12: =IF(Y12="","",Y12) -> 5.47 | AD12: TDU Base | AG12: 5.47 | AH12: =IF(AG12="","",AG12) -> 5.47 | AL12: TDU Base | AO12: 5.47 | AP12: =IF(AO12="","",AO12) -> 5.47 | AT12: TDU Base | AW12: 5.47 | AX12: =IF(AW12="","",AW12) -> 5.47 | BB12: TDU Base | BE12: 5.47 | BF12: =IF(BE12="","",BE12) -> 5.47 | BJ12: TDU Base | BM12: 5.47 | BN12: =IF(BM12="","",BM12) -> 5.47
F13: TDU per kWh | I13: 4.1112 | J13: =IF(I13="","",I13/100) -> 0.041112 | N13: TDU per kWh | Q13: 4.1112 | R13: =IF(Q13="","",Q13/100) -> 0.041112 | V13: TDU per kWh | Y13: 4.1112 | Z13: =IF(Y13="","",Y13/100) -> 0.041112 | AD13: TDU per kWh | AG13: 4.1112 | AH13: =IF(AG13="","",AG13/100) -> 0.041112 | AL13: TDU per kWh | AO13: 4.1112 | AP13: =IF(AO13="","",AO13/100) -> 0.041112 | AT13: TDU per kWh | AW13: 3.8711 | AX13: =IF(AW13="","",AW13/100) -> 0.038711 | BB13: TDU per kWh | BE13: 4.1112 | BF13: =IF(BE13="","",BE13/100) -> 0.041112 | BJ13: TDU per kWh | BM13: 4.1112 | BN13: =IF(BM13="","",BM13/100) -> 0.041112
F15: Usage Credit | H15: 1200 | I15: 30 | J15: =IF(I15="","",I15) -> 30 | N15: Usage Credit | P15: 1200 | Q15: 30 | R15: =IF(Q15="","",Q15) -> 30 | V15: Usage Credit | X15: 1200 | Y15: 30 | Z15: =IF(Y15="","",Y15) -> 30 | AD15: Usage Credit | AF15: 1200 | AG15: 30 | AH15: =IF(AG15="","",AG15) -> 30 | AL15: Usage Credit | AP15: =IF(AO15="","",AO15) ->  | AT15: Usage Credit | AV15: 800 | AW15: 9.95 | AX15: =IF(AW15="","",AW15) -> 9.95 | BB15: Usage Credit | BD15: 1200 | BE15: 30 | BF15: =IF(BE15="","",BE15) -> 30 | BJ15: Usage Credit | BL15: 1200 | BM15: 30 | BN15: =IF(BM15="","",BM15) -> 30
F16: Other Credits | J16: =IF(I16="","",I16) ->  | N16: Other Credits | R16: =IF(Q16="","",Q16) ->  | V16: Other Credits | Z16: =IF(Y16="","",Y16) ->  | AD16: Other Credits | AH16: =IF(AG16="","",AG16) ->  | AL16: Other Credits | AP16: =IF(AO16="","",AO16) ->  | AT16: Other Credits | AX16: =IF(AW16="","",AW16) ->  | BB16: Other Credits | BF16: =IF(BE16="","",BE16) ->  | BJ16: Other Credits | BM16: =150/12 -> 12.5 | BN16: =IF(BM16="","",BM16) -> 12.5
J20: Estimated | L20: Effective | R20: Estimated | T20: Effective | Z20: Estimated | AB20: Effective | AH20: Estimated | AJ20: Effective | AP20: Estimated | AR20: Effective | AX20: Estimated | AZ20: Effective | BF20: Estimated | BH20: Effective | BN20: Estimated | BP20: Effective
C21: Input kWh Usage | H21: Plan | I21: TDU | J21: Total Bill | L21: ¢ per kWh | P21: Plan | Q21: TDU | R21: Total Bill | T21: ¢ per kWh | X21: Plan | Y21: TDU | Z21: Total Bill | AB21: ¢ per kWh | AF21: Plan | AG21: TDU | AH21: Total Bill | AJ21: ¢ per kWh | AN21: Plan | AO21: TDU | AP21: Total Bill | AR21: ¢ per kWh | AV21: Plan | AW21: TDU | AX21: Total Bill | AZ21: ¢ per kWh | BD21: Plan | BE21: TDU | BF21: Total Bill | BH21: ¢ per kWh | BL21: Plan | BM21: TDU | BN21: Total Bill | BP21: ¢ per kWh
D22: s | F22: 500 | H22: =IF(OR(I$6="",H$7="",J$7=""),"",J$6+CalcPlan(J$5,$F22,H$7)-GetUsageCredits($F22, H$15, J$15)-IF(J$16="",0,J$16)) -> 60.45 | I22: =IF(OR(J$12="",J$13=""),"", J$12+($F22*J$13)) -> 26.026 | J22: =IF(AND(H22="",I22=""),"",SUM(H22:I22)) -> 86.476 | L22: =IF(OR(J22="",$F22=""),"", J22/$F22*100) -> 17.2952 | P22: =IF(OR(Q$6="",P$7="",R$7=""),"",R$6+CalcPlan(R$5,$F22,P$7)-GetUsageCredits($F22, P$15, R$15)-IF(R$16="",0,R$16)) -> 56.45 | Q22: =IF(OR(R$12="",R$13=""),"", R$12+($F22*R$13)) -> 26.026 | R22: =IF(AND(P22="",Q22=""),"",SUM(P22:Q22)) -> 82.476 | T22: =IF(OR(R22="",$F22=""),"", R22/$F22*100) -> 16.4952 | X22: =IF(OR(Y$6="",X$7="",Z$7=""),"",Z$6+CalcPlan(Z$5,$F22,X$7)-GetUsageCredits($F22, X$15, Z$15)-IF(Z$16="",0,Z$16)) -> 60.45 | Y22: =IF(OR(Z$12="",Z$13=""),"", Z$12+($F22*Z$13)) -> 26.026 | Z22: =IF(AND(X22="",Y22=""),"",SUM(X22:Y22)) -> 86.476 | AB22: =IF(OR(Z22="",$F22=""),"", Z22/$F22*100) -> 17.2952 | AF22: =IF(OR(AG$6="",AF$7="",AH$7=""),"",AH$6+CalcPlan(AH$5,$F22,AF$7)-GetUsageCredits($F22, AF$15, AH$15)-IF(AH$16="",0,AH$16)) -> 62.95 | AG22: =IF(OR(AH$12="",AH$13=""),"", AH$12+($F22*AH$13)) -> 26.026 | AH22: =IF(AND(AF22="",AG22=""),"",SUM(AF22:AG22)) -> 88.976 | AJ22: =IF(OR(AH22="",$F22=""),"", AH22/$F22*100) -> 17.7952 | AN22: =IF(OR(AO$6="",AN$7="",AP$7=""),"",AP$6+CalcPlan(AP$5,$F22,AN$7)-GetUsageCredits($F22, AN$15, AP$15)-IF(AP$16="",0,AP$16)) -> 51.95 | AO22: =IF(OR(AP$12="",AP$13=""),"", AP$12+($F22*AP$13)) -> 26.026 | AP22: =IF(AND(AN22="",AO22=""),"",SUM(AN22:AO22)) -> 77.976 | AR22: =IF(OR(AP22="",$F22=""),"", AP22/$F22*100) -> 15.5952 | AV22: =IF(OR(AW$6="",AV$7="",AX$7=""),"",AX$6+CalcPlan(AX$5,$F22,AV$7)-GetUsageCredits($F22, AV$15, AX$15)-IF(AX$16="",0,AX$16)) -> 50.45 | AW22: =IF(OR(AX$12="",AX$13=""),"", AX$12+($F22*AX$13)) -> 24.8255 | AX22: =IF(AND(AV22="",AW22=""),"",SUM(AV22:AW22)) -> 75.2755 | AZ22: =IF(OR(AX22="",$F22=""),"", AX22/$F22*100) -> 15.0551 | BD22: =IF(OR(BE$6="",BD$7="",BF$7=""),"",BF$6+CalcPlan(BF$5,$F22,BD$7)-GetUsageCredits($F22, BD$15, BF$15)-IF(BF$16="",0,BF$16)) -> 70.95 | BE22: =IF(OR(BF$12="",BF$13=""),"", BF$12+($F22*BF$13)) -> 26.026 | BF22: =IF(AND(BD22="",BE22=""),"",SUM(BD22:BE22)) -> 96.976 | BH22: =IF(OR(BF22="",$F22=""),"", BF22/$F22*100) -> 19.3952 | BL22: =IF(OR(BM$6="",BL$7="",BN$7=""),"",BN$6+CalcPlan(BN$5,$F22,BL$7)-GetUsageCredits($F22, BL$15, BN$15)-IF(BN$16="",0,BN$16)) -> 45.95 | BM22: =IF(OR(BN$12="",BN$13=""),"", BN$12+($F22*BN$13)) -> 26.026 | BN22: =IF(AND(BL22="",BM22=""),"",SUM(BL22:BM22)) -> 71.976 | BP22: =IF(OR(BN22="",$F22=""),"", BN22/$F22*100) -> 14.3952
D23: s | F23: 1000 | H23: =IF(OR(I$6="",H$7="",J$7=""),"",J$6+CalcPlan(J$5,$F23,H$7)-GetUsageCredits($F23, H$15, J$15)-IF(J$16="",0,J$16)) -> 110.95 | I23: =IF(OR(J$12="",J$13=""),"", J$12+($F23*J$13)) -> 46.582 | J23: =IF(AND(H23="",I23=""),"",SUM(H23:I23)) -> 157.532 | L23: =IF(OR(J23="",$F23=""),"", J23/$F23*100) -> 15.7532 | P23: =IF(OR(Q$6="",P$7="",R$7=""),"",R$6+CalcPlan(R$5,$F23,P$7)-GetUsageCredits($F23, P$15, R$15)-IF(R$16="",0,R$16)) -> 102.95 | Q23: =IF(OR(R$12="",R$13=""),"", R$12+($F23*R$13)) -> 46.582 | R23: =IF(AND(P23="",Q23=""),"",SUM(P23:Q23)) -> 149.532 | T23: =IF(OR(R23="",$F23=""),"", R23/$F23*100) -> 14.9532 | X23: =IF(OR(Y$6="",X$7="",Z$7=""),"",Z$6+CalcPlan(Z$5,$F23,X$7)-GetUsageCredits($F23, X$15, Z$15)-IF(Z$16="",0,Z$16)) -> 110.95 | Y23: =IF(OR(Z$12="",Z$13=""),"", Z$12+($F23*Z$13)) -> 46.582 | Z23: =IF(AND(X23="",Y23=""),"",SUM(X23:Y23)) -> 157.532 | AB23: =IF(OR(Z23="",$F23=""),"", Z23/$F23*100) -> 15.7532 | AF23: =IF(OR(AG$6="",AF$7="",AH$7=""),"",AH$6+CalcPlan(AH$5,$F23,AF$7)-GetUsageCredits($F23, AF$15, AH$15)-IF(AH$16="",0,AH$16)) -> 115.95 | AG23: =IF(OR(AH$12="",AH$13=""),"", AH$12+($F23*AH$13)) -> 46.582 | AH23: =IF(AND(AF23="",AG23=""),"",SUM(AF23:AG23)) -> 162.532 | AJ23: =IF(OR(AH23="",$F23=""),"", AH23/$F23*100) -> 16.2532 | AN23: =IF(OR(AO$6="",AN$7="",AP$7=""),"",AP$6+CalcPlan(AP$5,$F23,AN$7)-GetUsageCredits($F23, AN$15, AP$15)-IF(AP$16="",0,AP$16)) -> 93.95 | AO23: =IF(OR(AP$12="",AP$13=""),"", AP$12+($F23*AP$13)) -> 46.582 | AP23: =IF(AND(AN23="",AO23=""),"",SUM(AN23:AO23)) -> 140.532 | AR23: =IF(OR(AP23="",$F23=""),"", AP23/$F23*100) -> 14.0532 | AV23: =IF(OR(AW$6="",AV$7="",AX$7=""),"",AX$6+CalcPlan(AX$5,$F23,AV$7)-GetUsageCredits($F23, AV$15, AX$15)-IF(AX$16="",0,AX$16)) -> 81 | AW23: =IF(OR(AX$12="",AX$13=""),"", AX$12+($F23*AX$13)) -> 44.181 | AX23: =IF(AND(AV23="",AW23=""),"",SUM(AV23:AW23)) -> 125.181 | AZ23: =IF(OR(AX23="",$F23=""),"", AX23/$F23*100) -> 12.5181 | BD23: =IF(OR(BE$6="",BD$7="",BF$7=""),"",BF$6+CalcPlan(BF$5,$F23,BD$7)-GetUsageCredits($F23, BD$15, BF$15)-IF(BF$16="",0,BF$16)) -> 131.95 | BE23: =IF(OR(BF$12="",BF$13=""),"", BF$12+($F23*BF$13)) -> 46.582 | BF23: =IF(AND(BD23="",BE23=""),"",SUM(BD23:BE23)) -> 178.532 | BH23: =IF(OR(BF23="",$F23=""),"", BF23/$F23*100) -> 17.8532 | BL23: =IF(OR(BM$6="",BL$7="",BN$7=""),"",BN$6+CalcPlan(BN$5,$F23,BL$7)-GetUsageCredits($F23, BL$15, BN$15)-IF(BN$16="",0,BN$16)) -> 94.45 | BM23: =IF(OR(BN$12="",BN$13=""),"", BN$12+($F23*BN$13)) -> 46.582 | BN23: =IF(AND(BL23="",BM23=""),"",SUM(BL23:BM23)) -> 141.032 | BP23: =IF(OR(BN23="",$F23=""),"", BN23/$F23*100) -> 14.1032
D24: s | F24: 2000 | H24: =IF(OR(I$6="",H$7="",J$7=""),"",J$6+CalcPlan(J$5,$F24,H$7)-GetUsageCredits($F24, H$15, J$15)-IF(J$16="",0,J$16)) -> 141.95 | I24: =IF(OR(J$12="",J$13=""),"", J$12+($F24*J$13)) -> 87.694 | J24: =IF(AND(H24="",I24=""),"",SUM(H24:I24)) -> 229.644 | L24: =IF(OR(J24="",$F24=""),"", J24/$F24*100) -> 11.4822 | P24: =IF(OR(Q$6="",P$7="",R$7=""),"",R$6+CalcPlan(R$5,$F24,P$7)-GetUsageCredits($F24, P$15, R$15)-IF(R$16="",0,R$16)) -> 129.15 | Q24: =IF(OR(R$12="",R$13=""),"", R$12+($F24*R$13)) -> 87.694 | R24: =IF(AND(P24="",Q24=""),"",SUM(P24:Q24)) -> 216.844 | T24: =IF(OR(R24="",$F24=""),"", R24/$F24*100) -> 10.8422 | X24: =IF(OR(Y$6="",X$7="",Z$7=""),"",Z$6+CalcPlan(Z$5,$F24,X$7)-GetUsageCredits($F24, X$15, Z$15)-IF(Z$16="",0,Z$16)) -> 141.95 | Y24: =IF(OR(Z$12="",Z$13=""),"", Z$12+($F24*Z$13)) -> 87.694 | Z24: =IF(AND(X24="",Y24=""),"",SUM(X24:Y24)) -> 229.644 | AB24: =IF(OR(Z24="",$F24=""),"", Z24/$F24*100) -> 11.4822 | AF24: =IF(OR(AG$6="",AF$7="",AH$7=""),"",AH$6+CalcPlan(AH$5,$F24,AF$7)-GetUsageCredits($F24, AF$15, AH$15)-IF(AH$16="",0,AH$16)) -> 149.55 | AG24: =IF(OR(AH$12="",AH$13=""),"", AH$12+($F24*AH$13)) -> 87.694 | AH24: =IF(AND(AF24="",AG24=""),"",SUM(AF24:AG24)) -> 237.244 | AJ24: =IF(OR(AH24="",$F24=""),"", AH24/$F24*100) -> 11.8622 | AN24: =IF(OR(AO$6="",AN$7="",AP$7=""),"",AP$6+CalcPlan(AP$5,$F24,AN$7)-GetUsageCredits($F24, AN$15, AP$15)-IF(AP$16="",0,AP$16)) -> 135.7 | AO24: =IF(OR(AP$12="",AP$13=""),"", AP$12+($F24*AP$13)) -> 87.694 | AP24: =IF(AND(AN24="",AO24=""),"",SUM(AN24:AO24)) -> 223.394 | AR24: =IF(OR(AP24="",$F24=""),"", AP24/$F24*100) -> 11.1697 | AV24: =IF(OR(AW$6="",AV$7="",AX$7=""),"",AX$6+CalcPlan(AX$5,$F24,AV$7)-GetUsageCredits($F24, AV$15, AX$15)-IF(AX$16="",0,AX$16)) -> 162 | AW24: =IF(OR(AX$12="",AX$13=""),"", AX$12+($F24*AX$13)) -> 82.892 | AX24: =IF(AND(AV24="",AW24=""),"",SUM(AV24:AW24)) -> 244.892 | AZ24: =IF(OR(AX24="",$F24=""),"", AX24/$F24*100) -> 12.2446 | BD24: =IF(OR(BE$6="",BD$7="",BF$7=""),"",BF$6+CalcPlan(BF$5,$F24,BD$7)-GetUsageCredits($F24, BD$15, BF$15)-IF(BF$16="",0,BF$16)) -> 175.15 | BE24: =IF(OR(BF$12="",BF$13=""),"", BF$12+($F24*BF$13)) -> 87.694 | BF24: =IF(AND(BD24="",BE24=""),"",SUM(BD24:BE24)) -> 262.844 | BH24: =IF(OR(BF24="",$F24=""),"", BF24/$F24*100) -> 13.1422 | BL24: =IF(OR(BM$6="",BL$7="",BN$7=""),"",BN$6+CalcPlan(BN$5,$F24,BL$7)-GetUsageCredits($F24, BL$15, BN$15)-IF(BN$16="",0,BN$16)) -> 123.05 | BM24: =IF(OR(BN$12="",BN$13=""),"", BN$12+($F24*BN$13)) -> 87.694 | BN24: =IF(AND(BL24="",BM24=""),"",SUM(BL24:BM24)) -> 210.744 | BP24: =IF(OR(BN24="",$F24=""),"", BN24/$F24*100) -> 10.5372
D26: 1 | F26: =data!K214 -> 2985 | H26: =IF(OR(I$6="",H$7="",J$7=""),"",J$6+CalcPlan(J$5,$F26,H$7)-GetUsageCredits($F26, H$15, J$15)-IF(J$16="",0,J$16)) -> 246.36 | I26: =IF(OR(J$12="",J$13=""),"", J$12+($F26*J$13)) -> 128.18932 | J26: =IF(AND(H26="",I26=""),"",SUM(H26:I26)) -> 374.54932 | L26: =IF(OR(J26="",$F26=""),"", J26/$F26*100) -> 12.54771591 | P26: =IF(OR(Q$6="",P$7="",R$7=""),"",R$6+CalcPlan(R$5,$F26,P$7)-GetUsageCredits($F26, P$15, R$15)-IF(R$16="",0,R$16)) -> 225.68 | Q26: =IF(OR(R$12="",R$13=""),"", R$12+($F26*R$13)) -> 128.18932 | R26: =IF(AND(P26="",Q26=""),"",SUM(P26:Q26)) -> 353.86932 | T26: =IF(OR(R26="",$F26=""),"", R26/$F26*100) -> 11.85491859 | X26: =IF(OR(Y$6="",X$7="",Z$7=""),"",Z$6+CalcPlan(Z$5,$F26,X$7)-GetUsageCredits($F26, X$15, Z$15)-IF(Z$16="",0,Z$16)) -> 246.36 | Y26: =IF(OR(Z$12="",Z$13=""),"", Z$12+($F26*Z$13)) -> 128.18932 | Z26: =IF(AND(X26="",Y26=""),"",SUM(X26:Y26)) -> 374.54932 | AB26: =IF(OR(Z26="",$F26=""),"", Z26/$F26*100) -> 12.54771591 | AF26: =IF(OR(AG$6="",AF$7="",AH$7=""),"",AH$6+CalcPlan(AH$5,$F26,AF$7)-GetUsageCredits($F26, AF$15, AH$15)-IF(AH$16="",0,AH$16)) -> 258.885 | AG26: =IF(OR(AH$12="",AH$13=""),"", AH$12+($F26*AH$13)) -> 128.18932 | AH26: =IF(AND(AF26="",AG26=""),"",SUM(AF26:AG26)) -> 387.07432 | AJ26: =IF(OR(AH26="",$F26=""),"", AH26/$F26*100) -> 12.9673139 | AN26: =IF(OR(AO$6="",AN$7="",AP$7=""),"",AP$6+CalcPlan(AP$5,$F26,AN$7)-GetUsageCredits($F26, AN$15, AP$15)-IF(AP$16="",0,AP$16)) -> 293.3 | AO26: =IF(OR(AP$12="",AP$13=""),"", AP$12+($F26*AP$13)) -> 128.18932 | AP26: =IF(AND(AN26="",AO26=""),"",SUM(AN26:AO26)) -> 421.48932 | AR26: =IF(OR(AP26="",$F26=""),"", AP26/$F26*100) -> 14.12024523 | AV26: =IF(OR(AW$6="",AV$7="",AX$7=""),"",AX$6+CalcPlan(AX$5,$F26,AV$7)-GetUsageCredits($F26, AV$15, AX$15)-IF(AX$16="",0,AX$16)) -> 241.785 | AW26: =IF(OR(AX$12="",AX$13=""),"", AX$12+($F26*AX$13)) -> 121.022335 | AX26: =IF(AND(AV26="",AW26=""),"",SUM(AV26:AW26)) -> 362.807335 | AZ26: =IF(OR(AX26="",$F26=""),"", AX26/$F26*100) -> 12.15434958 | BD26: =IF(OR(BE$6="",BD$7="",BF$7=""),"",BF$6+CalcPlan(BF$5,$F26,BD$7)-GetUsageCredits($F26, BD$15, BF$15)-IF(BF$16="",0,BF$16)) -> 301.23 | BE26: =IF(OR(BF$12="",BF$13=""),"", BF$12+($F26*BF$13)) -> 128.18932 | BF26: =IF(AND(BD26="",BE26=""),"",SUM(BD26:BE26)) -> 429.41932 | BH26: =IF(OR(BF26="",$F26=""),"", BF26/$F26*100) -> 14.38590687 | BL26: =IF(OR(BM$6="",BL$7="",BN$7=""),"",BN$6+CalcPlan(BN$5,$F26,BL$7)-GetUsageCredits($F26, BL$15, BN$15)-IF(BN$16="",0,BN$16)) -> 223.52 | BM26: =IF(OR(BN$12="",BN$13=""),"", BN$12+($F26*BN$13)) -> 128.18932 | BN26: =IF(AND(BL26="",BM26=""),"",SUM(BL26:BM26)) -> 351.70932 | BP26: =IF(OR(BN26="",$F26=""),"", BN26/$F26*100) -> 11.78255678
D27: 2 | F27: =data!K215 -> 3134 | H27: =IF(OR(I$6="",H$7="",J$7=""),"",J$6+CalcPlan(J$5,$F27,H$7)-GetUsageCredits($F27, H$15, J$15)-IF(J$16="",0,J$16)) -> 262.154 | I27: 134.315008 | J27: 396.469008 | L27: 12.6505746 | P27: =IF(OR(Q$6="",P$7="",R$7=""),"",R$6+CalcPlan(R$5,$F27,P$7)-GetUsageCredits($F27, P$15, R$15)-IF(R$16="",0,R$16)) -> 240.282 | Q27: 134.315008 | R27: 374.597008 | T27: 11.95268054 | X27: =IF(OR(Y$6="",X$7="",Z$7=""),"",Z$6+CalcPlan(Z$5,$F27,X$7)-GetUsageCredits($F27, X$15, Z$15)-IF(Z$16="",0,Z$16)) -> 262.154 | Y27: 134.315008 | Z27: 396.469008 | AB27: 12.6505746 | AF27: =IF(OR(AG$6="",AF$7="",AH$7=""),"",AH$6+CalcPlan(AH$5,$F27,AF$7)-GetUsageCredits($F27, AF$15, AH$15)-IF(AH$16="",0,AH$16)) -> 275.424 | AG27: 134.315008 | AH27: 409.739008 | AJ27: 13.07399515 | AN27: =IF(OR(AO$6="",AN$7="",AP$7=""),"",AP$6+CalcPlan(AP$5,$F27,AN$7)-GetUsageCredits($F27, AN$15, AP$15)-IF(AP$16="",0,AP$16)) -> 317.14 | AO27: 134.315008 | AP27: 451.455008 | AR27: 14.40507364 | AV27: =IF(OR(AW$6="",AV$7="",AX$7=""),"",AX$6+CalcPlan(AX$5,$F27,AV$7)-GetUsageCredits($F27, AV$15, AX$15)-IF(AX$16="",0,AX$16)) -> 253.854 | AW27: 126.790274 | AX27: 380.644274 | AZ27: 12.14563733 | BD27: =IF(OR(BE$6="",BD$7="",BF$7=""),"",BF$6+CalcPlan(BF$5,$F27,BD$7)-GetUsageCredits($F27, BD$15, BF$15)-IF(BF$16="",0,BF$16)) -> 320.302 | BE27: 134.315008 | BF27: 454.617008 | BH27: 14.50596707 | BL27: =IF(OR(BM$6="",BL$7="",BN$7=""),"",BN$6+CalcPlan(BN$5,$F27,BL$7)-GetUsageCredits($F27, BL$15, BN$15)-IF(BN$16="",0,BN$16)) -> 238.718 | BM27: 134.315008 | BN27: 373.033008 | BP27: 11.90277626
D28: 3 | F28: =data!K216 -> 3152 | H28: =IF(OR(I$6="",H$7="",J$7=""),"",J$6+CalcPlan(J$5,$F28,H$7)-GetUsageCredits($F28, H$15, J$15)-IF(J$16="",0,J$16)) -> 264.062 | I28: 135.055024 | J28: 399.117024 | L28: 12.66234213 | P28: =IF(OR(Q$6="",P$7="",R$7=""),"",R$6+CalcPlan(R$5,$F28,P$7)-GetUsageCredits($F28, P$15, R$15)-IF(R$16="",0,R$16)) -> 242.046 | Q28: 135.055024 | R28: 377.101024 | T28: 11.96386497 | X28: =IF(OR(Y$6="",X$7="",Z$7=""),"",Z$6+CalcPlan(Z$5,$F28,X$7)-GetUsageCredits($F28, X$15, Z$15)-IF(Z$16="",0,Z$16)) -> 264.062 | Y28: 135.055024 | Z28: 399.117024 | AB28: 12.66234213 | AF28: =IF(OR(AG$6="",AF$7="",AH$7=""),"",AH$6+CalcPlan(AH$5,$F28,AF$7)-GetUsageCredits($F28, AF$15, AH$15)-IF(AH$16="",0,AH$16)) -> 277.422 | AG28: 135.055024 | AH28: 412.477024 | AJ28: 13.0862 | AN28: =IF(OR(AO$6="",AN$7="",AP$7=""),"",AP$6+CalcPlan(AP$5,$F28,AN$7)-GetUsageCredits($F28, AN$15, AP$15)-IF(AP$16="",0,AP$16)) -> 320.02 | AO28: 135.055024 | AP28: 455.075024 | AR28: 14.43765939 | AV28: =IF(OR(AW$6="",AV$7="",AX$7=""),"",AX$6+CalcPlan(AX$5,$F28,AV$7)-GetUsageCredits($F28, AV$15, AX$15)-IF(AX$16="",0,AX$16)) -> 255.312 | AW28: 127.487072 | AX28: 382.799072 | AZ28: 12.14464061 | BD28: =IF(OR(BE$6="",BD$7="",BF$7=""),"",BF$6+CalcPlan(BF$5,$F28,BD$7)-GetUsageCredits($F28, BD$15, BF$15)-IF(BF$16="",0,BF$16)) -> 322.606 | BE28: 135.055024 | BF28: 457.661024 | BH28: 14.51970254 | BL28: =IF(OR(BM$6="",BL$7="",BN$7=""),"",BN$6+CalcPlan(BN$5,$F28,BL$7)-GetUsageCredits($F28, BL$15, BN$15)-IF(BN$16="",0,BN$16)) -> 240.554 | BM28: 135.055024 | BN28: 375.609024 | BP28: 11.91652995
D29: 4 | F29: =data!K217 -> 2594 | H29: =IF(OR(I$6="",H$7="",J$7=""),"",J$6+CalcPlan(J$5,$F29,H$7)-GetUsageCredits($F29, H$15, J$15)-IF(J$16="",0,J$16)) -> 204.914 | I29: 112.114528 | J29: 317.028528 | L29: 12.22160864 | P29: =IF(OR(Q$6="",P$7="",R$7=""),"",R$6+CalcPlan(R$5,$F29,P$7)-GetUsageCredits($F29, P$15, R$15)-IF(R$16="",0,R$16)) -> 187.362 | Q29: 112.114528 | R29: 299.476528 | T29: 11.54497024 | X29: =IF(OR(Y$6="",X$7="",Z$7=""),"",Z$6+CalcPlan(Z$5,$F29,X$7)-GetUsageCredits($F29, X$15, Z$15)-IF(Z$16="",0,Z$16)) -> 204.914 | Y29: 112.114528 | Z29: 317.028528 | AB29: 12.22160864 | AF29: =IF(OR(AG$6="",AF$7="",AH$7=""),"",AH$6+CalcPlan(AH$5,$F29,AF$7)-GetUsageCredits($F29, AF$15, AH$15)-IF(AH$16="",0,AH$16)) -> 215.484 | AG29: 112.114528 | AH29: 327.598528 | AJ29: 12.62908743 | AN29: =IF(OR(AO$6="",AN$7="",AP$7=""),"",AP$6+CalcPlan(AP$5,$F29,AN$7)-GetUsageCredits($F29, AN$15, AP$15)-IF(AP$16="",0,AP$16)) -> 230.74 | AO29: 112.114528 | AP29: 342.854528 | AR29: 13.21721388 | AV29: =IF(OR(AW$6="",AV$7="",AX$7=""),"",AX$6+CalcPlan(AX$5,$F29,AV$7)-GetUsageCredits($F29, AV$15, AX$15)-IF(AX$16="",0,AX$16)) -> 210.114 | AW29: 105.886334 | AX29: 316.000334 | AZ29: 12.18197124 | BD29: =IF(OR(BE$6="",BD$7="",BF$7=""),"",BF$6+CalcPlan(BF$5,$F29,BD$7)-GetUsageCredits($F29, BD$15, BF$15)-IF(BF$16="",0,BF$16)) -> 251.182 | BE29: 112.114528 | BF29: 363.296528 | BH29: 14.00526322 | BL29: =IF(OR(BM$6="",BL$7="",BN$7=""),"",BN$6+CalcPlan(BN$5,$F29,BL$7)-GetUsageCredits($F29, BL$15, BN$15)-IF(BN$16="",0,BN$16)) -> 183.638 | BM29: 112.114528 | BN29: 295.752528 | BP29: 11.40140817
D30: 5 | F30: =data!K218 -> 1922 | H30: =IF(OR(I$6="",H$7="",J$7=""),"",J$6+CalcPlan(J$5,$F30,H$7)-GetUsageCredits($F30, H$15, J$15)-IF(J$16="",0,J$16)) -> 137.972 | I30: 84.487264 | J30: 222.459264 | L30: 11.57436337 | P30: =IF(OR(Q$6="",P$7="",R$7=""),"",R$6+CalcPlan(R$5,$F30,P$7)-GetUsageCredits($F30, P$15, R$15)-IF(R$16="",0,R$16)) -> 125.484 | Q30: 84.487264 | R30: 209.971264 | T30: 10.92462352 | X30: =IF(OR(Y$6="",X$7="",Z$7=""),"",Z$6+CalcPlan(Z$5,$F30,X$7)-GetUsageCredits($F30, X$15, Z$15)-IF(Z$16="",0,Z$16)) -> 137.972 | Y30: 84.487264 | Z30: 222.459264 | AB30: 11.57436337 | AF30: =IF(OR(AG$6="",AF$7="",AH$7=""),"",AH$6+CalcPlan(AH$5,$F30,AF$7)-GetUsageCredits($F30, AF$15, AH$15)-IF(AH$16="",0,AH$16)) -> 145.416 | AG30: 84.487264 | AH30: 229.903264 | AJ30: 11.96166826 | AN30: =IF(OR(AO$6="",AN$7="",AP$7=""),"",AP$6+CalcPlan(AP$5,$F30,AN$7)-GetUsageCredits($F30, AN$15, AP$15)-IF(AP$16="",0,AP$16)) -> 134.218 | AO30: 84.487264 | AP30: 218.705264 | AR30: 11.37904599 | AV30: =IF(OR(AW$6="",AV$7="",AX$7=""),"",AX$6+CalcPlan(AX$5,$F30,AV$7)-GetUsageCredits($F30, AV$15, AX$15)-IF(AX$16="",0,AX$16)) -> 155.682 | AW30: 79.872542 | AX30: 235.554542 | AZ30: 12.25569938 | BD30: =IF(OR(BE$6="",BD$7="",BF$7=""),"",BF$6+CalcPlan(BF$5,$F30,BD$7)-GetUsageCredits($F30, BD$15, BF$15)-IF(BF$16="",0,BF$16)) -> 170.392 | BE30: 84.487264 | BF30: 254.879264 | BH30: 13.26114797 | BL30: =IF(OR(BM$6="",BL$7="",BN$7=""),"",BN$6+CalcPlan(BN$5,$F30,BL$7)-GetUsageCredits($F30, BL$15, BN$15)-IF(BN$16="",0,BN$16)) -> 119.228 | BM30: 84.487264 | BN30: 203.715264 | BP30: 10.59912924
D31: 6 | F31: =data!K219 -> 1470 | H31: =IF(OR(I$6="",H$7="",J$7=""),"",J$6+CalcPlan(J$5,$F31,H$7)-GetUsageCredits($F31, H$15, J$15)-IF(J$16="",0,J$16)) -> 114.92 | I31: 65.90464 | J31: 180.82464 | L31: 12.30099592 | P31: =IF(OR(Q$6="",P$7="",R$7=""),"",R$6+CalcPlan(R$5,$F31,P$7)-GetUsageCredits($F31, P$15, R$15)-IF(R$16="",0,R$16)) -> 104.24 | Q31: 65.90464 | R31: 170.14464 | T31: 11.57446531 | X31: =IF(OR(Y$6="",X$7="",Z$7=""),"",Z$6+CalcPlan(Z$5,$F31,X$7)-GetUsageCredits($F31, X$15, Z$15)-IF(Z$16="",0,Z$16)) -> 114.92 | Y31: 65.90464 | Z31: 180.82464 | AB31: 12.30099592 | AF31: =IF(OR(AG$6="",AF$7="",AH$7=""),"",AH$6+CalcPlan(AH$5,$F31,AF$7)-GetUsageCredits($F31, AF$15, AH$15)-IF(AH$16="",0,AH$16)) -> 121.46 | AG31: 65.90464 | AH31: 187.36464 | AJ31: 12.74589388 | AN31: =IF(OR(AO$6="",AN$7="",AP$7=""),"",AP$6+CalcPlan(AP$5,$F31,AN$7)-GetUsageCredits($F31, AN$15, AP$15)-IF(AP$16="",0,AP$16)) -> 125.63 | AO31: 65.90464 | AP31: 191.53464 | AR31: 13.02956735 | AV31: =IF(OR(AW$6="",AV$7="",AX$7=""),"",AX$6+CalcPlan(AX$5,$F31,AV$7)-GetUsageCredits($F31, AV$15, AX$15)-IF(AX$16="",0,AX$16)) -> 119.07 | AW31: 62.37517 | AX31: 181.44517 | AZ31: 12.34320884 | BD31: =IF(OR(BE$6="",BD$7="",BF$7=""),"",BF$6+CalcPlan(BF$5,$F31,BD$7)-GetUsageCredits($F31, BD$15, BF$15)-IF(BF$16="",0,BF$16)) -> 142.82 | BE31: 65.90464 | BF31: 208.72464 | BH31: 14.1989551 | BL31: =IF(OR(BM$6="",BL$7="",BN$7=""),"",BN$6+CalcPlan(BN$5,$F31,BL$7)-GetUsageCredits($F31, BL$15, BN$15)-IF(BN$16="",0,BN$16)) -> 97.08 | BM31: 65.90464 | BN31: 162.98464 | BP31: 11.08739048
D32: 7 | F32: =data!K220 -> 1407 | H32: =IF(OR(I$6="",H$7="",J$7=""),"",J$6+CalcPlan(J$5,$F32,H$7)-GetUsageCredits($F32, H$15, J$15)-IF(J$16="",0,J$16)) -> 111.707 | I32: 63.314584 | J32: 175.021584 | L32: 12.43934499 | P32: =IF(OR(Q$6="",P$7="",R$7=""),"",R$6+CalcPlan(R$5,$F32,P$7)-GetUsageCredits($F32, P$15, R$15)-IF(R$16="",0,R$16)) -> 101.279 | Q32: 63.314584 | R32: 164.593584 | T32: 11.6981936 | X32: =IF(OR(Y$6="",X$7="",Z$7=""),"",Z$6+CalcPlan(Z$5,$F32,X$7)-GetUsageCredits($F32, X$15, Z$15)-IF(Z$16="",0,Z$16)) -> 111.707 | Y32: 63.314584 | Z32: 175.021584 | AB32: 12.43934499 | AF32: =IF(OR(AG$6="",AF$7="",AH$7=""),"",AH$6+CalcPlan(AH$5,$F32,AF$7)-GetUsageCredits($F32, AF$15, AH$15)-IF(AH$16="",0,AH$16)) -> 118.121 | AG32: 63.314584 | AH32: 181.435584 | AJ32: 12.89520853 | AN32: =IF(OR(AO$6="",AN$7="",AP$7=""),"",AP$6+CalcPlan(AP$5,$F32,AN$7)-GetUsageCredits($F32, AN$15, AP$15)-IF(AP$16="",0,AP$16)) -> 124.433 | AO32: 63.314584 | AP32: 187.747584 | AR32: 13.3438226 | AV32: =IF(OR(AW$6="",AV$7="",AX$7=""),"",AX$6+CalcPlan(AX$5,$F32,AV$7)-GetUsageCredits($F32, AV$15, AX$15)-IF(AX$16="",0,AX$16)) -> 113.967 | AW32: 59.936377 | AX32: 173.903377 | AZ32: 12.35987043 | BD32: =IF(OR(BE$6="",BD$7="",BF$7=""),"",BF$6+CalcPlan(BF$5,$F32,BD$7)-GetUsageCredits($F32, BD$15, BF$15)-IF(BF$16="",0,BF$16)) -> 138.977 | BE32: 63.314584 | BF32: 202.291584 | BH32: 14.3775113 | BL32: =IF(OR(BM$6="",BL$7="",BN$7=""),"",BN$6+CalcPlan(BN$5,$F32,BL$7)-GetUsageCredits($F32, BL$15, BN$15)-IF(BN$16="",0,BN$16)) -> 93.993 | BM32: 63.314584 | BN32: 157.307584 | BP32: 11.18035423
D33: 8 | F33: =data!K221 -> 1203 | H33: =IF(OR(I$6="",H$7="",J$7=""),"",J$6+CalcPlan(J$5,$F33,H$7)-GetUsageCredits($F33, H$15, J$15)-IF(J$16="",0,J$16)) -> 101.303 | I33: 54.927736 | J33: 156.230736 | L33: 12.9867611 | P33: =IF(OR(Q$6="",P$7="",R$7=""),"",R$6+CalcPlan(R$5,$F33,P$7)-GetUsageCredits($F33, P$15, R$15)-IF(R$16="",0,R$16)) -> 91.691 | Q33: 54.927736 | R33: 146.618736 | T33: 12.1877586 | X33: =IF(OR(Y$6="",X$7="",Z$7=""),"",Z$6+CalcPlan(Z$5,$F33,X$7)-GetUsageCredits($F33, X$15, Z$15)-IF(Z$16="",0,Z$16)) -> 101.303 | Y33: 54.927736 | Z33: 156.230736 | AB33: 12.9867611 | AF33: =IF(OR(AG$6="",AF$7="",AH$7=""),"",AH$6+CalcPlan(AH$5,$F33,AF$7)-GetUsageCredits($F33, AF$15, AH$15)-IF(AH$16="",0,AH$16)) -> 107.309 | AG33: 54.927736 | AH33: 162.236736 | AJ33: 13.48601297 | AN33: =IF(OR(AO$6="",AN$7="",AP$7=""),"",AP$6+CalcPlan(AP$5,$F33,AN$7)-GetUsageCredits($F33, AN$15, AP$15)-IF(AP$16="",0,AP$16)) -> 111.002 | AO33: 54.927736 | AP33: 165.929736 | AR33: 13.79299551 | AV33: =IF(OR(AW$6="",AV$7="",AX$7=""),"",AX$6+CalcPlan(AX$5,$F33,AV$7)-GetUsageCredits($F33, AV$15, AX$15)-IF(AX$16="",0,AX$16)) -> 97.443 | AW33: 52.039333 | AX33: 149.482333 | AZ33: 12.42579659 | BD33: =IF(OR(BE$6="",BD$7="",BF$7=""),"",BF$6+CalcPlan(BF$5,$F33,BD$7)-GetUsageCredits($F33, BD$15, BF$15)-IF(BF$16="",0,BF$16)) -> 126.533 | BE33: 54.927736 | BF33: 181.460736 | BH33: 15.08401796 | BL33: =IF(OR(BM$6="",BL$7="",BN$7=""),"",BN$6+CalcPlan(BN$5,$F33,BL$7)-GetUsageCredits($F33, BL$15, BN$15)-IF(BN$16="",0,BN$16)) -> 83.997 | BM33: 54.927736 | BN33: 138.924736 | BP33: 11.54819086
D34: 9 | F34: =data!K222 -> 1479 | H34: =IF(OR(I$6="",H$7="",J$7=""),"",J$6+CalcPlan(J$5,$F34,H$7)-GetUsageCredits($F34, H$15, J$15)-IF(J$16="",0,J$16)) -> 115.379 | I34: 66.274648 | J34: 181.653648 | L34: 12.28219391 | P34: =IF(OR(Q$6="",P$7="",R$7=""),"",R$6+CalcPlan(R$5,$F34,P$7)-GetUsageCredits($F34, P$15, R$15)-IF(R$16="",0,R$16)) -> 104.663 | Q34: 66.274648 | R34: 170.937648 | T34: 11.5576503 | X34: =IF(OR(Y$6="",X$7="",Z$7=""),"",Z$6+CalcPlan(Z$5,$F34,X$7)-GetUsageCredits($F34, X$15, Z$15)-IF(Z$16="",0,Z$16)) -> 115.379 | Y34: 66.274648 | Z34: 181.653648 | AB34: 12.28219391 | AF34: =IF(OR(AG$6="",AF$7="",AH$7=""),"",AH$6+CalcPlan(AH$5,$F34,AF$7)-GetUsageCredits($F34, AF$15, AH$15)-IF(AH$16="",0,AH$16)) -> 121.937 | AG34: 66.274648 | AH34: 188.211648 | AJ34: 12.72560162 | AN34: =IF(OR(AO$6="",AN$7="",AP$7=""),"",AP$6+CalcPlan(AP$5,$F34,AN$7)-GetUsageCredits($F34, AN$15, AP$15)-IF(AP$16="",0,AP$16)) -> 125.801 | AO34: 66.274648 | AP34: 192.075648 | AR34: 12.98685923 | AV34: =IF(OR(AW$6="",AV$7="",AX$7=""),"",AX$6+CalcPlan(AX$5,$F34,AV$7)-GetUsageCredits($F34, AV$15, AX$15)-IF(AX$16="",0,AX$16)) -> 119.799 | AW34: 62.723569 | AX34: 182.522569 | AZ34: 12.34094449 | BD34: =IF(OR(BE$6="",BD$7="",BF$7=""),"",BF$6+CalcPlan(BF$5,$F34,BD$7)-GetUsageCredits($F34, BD$15, BF$15)-IF(BF$16="",0,BF$16)) -> 143.369 | BE34: 66.274648 | BF34: 209.643648 | BH34: 14.17468884 | BL34: =IF(OR(BM$6="",BL$7="",BN$7=""),"",BN$6+CalcPlan(BN$5,$F34,BL$7)-GetUsageCredits($F34, BL$15, BN$15)-IF(BN$16="",0,BN$16)) -> 97.521 | BM34: 66.274648 | BN34: 163.795648 | BP34: 11.07475646
D35: 10 | F35: =data!K223 -> 1648 | H35: =IF(OR(I$6="",H$7="",J$7=""),"",J$6+CalcPlan(J$5,$F35,H$7)-GetUsageCredits($F35, H$15, J$15)-IF(J$16="",0,J$16)) -> 123.998 | I35: 73.222576 | J35: 197.220576 | L35: 11.96726796 | P35: =IF(OR(Q$6="",P$7="",R$7=""),"",R$6+CalcPlan(R$5,$F35,P$7)-GetUsageCredits($F35, P$15, R$15)-IF(R$16="",0,R$16)) -> 112.606 | Q35: 73.222576 | R35: 185.828576 | T35: 11.27600583 | X35: =IF(OR(Y$6="",X$7="",Z$7=""),"",Z$6+CalcPlan(Z$5,$F35,X$7)-GetUsageCredits($F35, X$15, Z$15)-IF(Z$16="",0,Z$16)) -> 123.998 | Y35: 73.222576 | Z35: 197.220576 | AB35: 11.96726796 | AF35: =IF(OR(AG$6="",AF$7="",AH$7=""),"",AH$6+CalcPlan(AH$5,$F35,AF$7)-GetUsageCredits($F35, AF$15, AH$15)-IF(AH$16="",0,AH$16)) -> 130.894 | AG35: 73.222576 | AH35: 204.116576 | AJ35: 12.38571456 | AN35: =IF(OR(AO$6="",AN$7="",AP$7=""),"",AP$6+CalcPlan(AP$5,$F35,AN$7)-GetUsageCredits($F35, AN$15, AP$15)-IF(AP$16="",0,AP$16)) -> 129.012 | AO35: 73.222576 | AP35: 202.234576 | AR35: 12.27151553 | AV35: =IF(OR(AW$6="",AV$7="",AX$7=""),"",AX$6+CalcPlan(AX$5,$F35,AV$7)-GetUsageCredits($F35, AV$15, AX$15)-IF(AX$16="",0,AX$16)) -> 133.488 | AW35: 69.265728 | AX35: 202.753728 | AZ35: 12.30301748 | BD35: =IF(OR(BE$6="",BD$7="",BF$7=""),"",BF$6+CalcPlan(BF$5,$F35,BD$7)-GetUsageCredits($F35, BD$15, BF$15)-IF(BF$16="",0,BF$16)) -> 153.678 | BE35: 73.222576 | BF35: 226.900576 | BH35: 13.76823883 | BL35: =IF(OR(BM$6="",BL$7="",BN$7=""),"",BN$6+CalcPlan(BN$5,$F35,BL$7)-GetUsageCredits($F35, BL$15, BN$15)-IF(BN$16="",0,BN$16)) -> 105.802 | BM35: 73.222576 | BN35: 179.024576 | BP35: 10.86314175
D36: 11 | F36: =data!K224 -> 2170 | H36: =IF(OR(I$6="",H$7="",J$7=""),"",J$6+CalcPlan(J$5,$F36,H$7)-GetUsageCredits($F36, H$15, J$15)-IF(J$16="",0,J$16)) -> 159.97 | I36: 94.68304 | J36: 254.65304 | L36: 11.73516313 | P36: =IF(OR(Q$6="",P$7="",R$7=""),"",R$6+CalcPlan(R$5,$F36,P$7)-GetUsageCredits($F36, P$15, R$15)-IF(R$16="",0,R$16)) -> 145.81 | Q36: 94.68304 | R36: 240.49304 | T36: 11.08262857 | X36: =IF(OR(Y$6="",X$7="",Z$7=""),"",Z$6+CalcPlan(Z$5,$F36,X$7)-GetUsageCredits($F36, X$15, Z$15)-IF(Z$16="",0,Z$16)) -> 159.97 | Y36: 94.68304 | Z36: 254.65304 | AB36: 11.73516313 | AF36: =IF(OR(AG$6="",AF$7="",AH$7=""),"",AH$6+CalcPlan(AH$5,$F36,AF$7)-GetUsageCredits($F36, AF$15, AH$15)-IF(AH$16="",0,AH$16)) -> 168.42 | AG36: 94.68304 | AH36: 263.10304 | AJ36: 12.12456406 | AN36: =IF(OR(AO$6="",AN$7="",AP$7=""),"",AP$6+CalcPlan(AP$5,$F36,AN$7)-GetUsageCredits($F36, AN$15, AP$15)-IF(AP$16="",0,AP$16)) -> 162.9 | AO36: 94.68304 | AP36: 257.58304 | AR36: 11.87018618 | AV36: =IF(OR(AW$6="",AV$7="",AX$7=""),"",AX$6+CalcPlan(AX$5,$F36,AV$7)-GetUsageCredits($F36, AV$15, AX$15)-IF(AX$16="",0,AX$16)) -> 175.77 | AW36: 89.47287 | AX36: 265.24287 | AZ36: 12.22317373 | BD36: =IF(OR(BE$6="",BD$7="",BF$7=""),"",BF$6+CalcPlan(BF$5,$F36,BD$7)-GetUsageCredits($F36, BD$15, BF$15)-IF(BF$16="",0,BF$16)) -> 196.91 | BE36: 94.68304 | BF36: 291.59304 | BH36: 13.43746728 | BL36: =IF(OR(BM$6="",BL$7="",BN$7=""),"",BN$6+CalcPlan(BN$5,$F36,BL$7)-GetUsageCredits($F36, BL$15, BN$15)-IF(BN$16="",0,BN$16)) -> 140.39 | BM36: 94.68304 | BN36: 235.07304 | BP36: 10.83285899
D37: 12 | F37: =data!K225 -> 3085 | H37: =IF(OR(I$6="",H$7="",J$7=""),"",J$6+CalcPlan(J$5,$F37,H$7)-GetUsageCredits($F37, H$15, J$15)-IF(J$16="",0,J$16)) -> 256.96 | I37: 132.30052 | J37: 389.26052 | L37: 12.61784506 | P37: =IF(OR(Q$6="",P$7="",R$7=""),"",R$6+CalcPlan(R$5,$F37,P$7)-GetUsageCredits($F37, P$15, R$15)-IF(R$16="",0,R$16)) -> 235.48 | Q37: 132.30052 | R37: 367.78052 | T37: 11.92157277 | X37: =IF(OR(Y$6="",X$7="",Z$7=""),"",Z$6+CalcPlan(Z$5,$F37,X$7)-GetUsageCredits($F37, X$15, Z$15)-IF(Z$16="",0,Z$16)) -> 256.96 | Y37: 132.30052 | Z37: 389.26052 | AB37: 12.61784506 | AF37: =IF(OR(AG$6="",AF$7="",AH$7=""),"",AH$6+CalcPlan(AH$5,$F37,AF$7)-GetUsageCredits($F37, AF$15, AH$15)-IF(AH$16="",0,AH$16)) -> 269.985 | AG37: 132.30052 | AH37: 402.28552 | AJ37: 13.04004927 | AN37: =IF(OR(AO$6="",AN$7="",AP$7=""),"",AP$6+CalcPlan(AP$5,$F37,AN$7)-GetUsageCredits($F37, AN$15, AP$15)-IF(AP$16="",0,AP$16)) -> 309.3 | AO37: 132.30052 | AP37: 441.60052 | AR37: 14.31444149 | AV37: =IF(OR(AW$6="",AV$7="",AX$7=""),"",AX$6+CalcPlan(AX$5,$F37,AV$7)-GetUsageCredits($F37, AV$15, AX$15)-IF(AX$16="",0,AX$16)) -> 249.885 | AW37: 124.893435 | AX37: 374.778435 | AZ37: 12.14840956 | BD37: =IF(OR(BE$6="",BD$7="",BF$7=""),"",BF$6+CalcPlan(BF$5,$F37,BD$7)-GetUsageCredits($F37, BD$15, BF$15)-IF(BF$16="",0,BF$16)) -> 314.03 | BE37: 132.30052 | BF37: 446.33052 | BH37: 14.46776402 | BL37: =IF(OR(BM$6="",BL$7="",BN$7=""),"",BN$6+CalcPlan(BN$5,$F37,BL$7)-GetUsageCredits($F37, BL$15, BN$15)-IF(BN$16="",0,BN$16)) -> 233.72 | BM37: 132.30052 | BN37: 366.02052 | BP37: 11.86452253
D39: Avg | F39: =AVERAGE(F26:F37) -> 2187.416667
D40: Total | F40: =SUM(F26:F37) -> 26249 | J40: =IF(J26="","",SUM(J26:J37)) -> 3244.487888 | L40: =IF(L26="","",AVERAGE(L26:L37)) -> 12.33218139 | M40: =IF(J40="","",J40/$F$40*100) -> 12.36042473 | R40: =IF(R26="","",SUM(R26:R37)) -> 3061.411888 | T40: =IF(T26="","",AVERAGE(T26:T37)) -> 11.62827774 | U40: =IF(R40="","",R40/$F$40*100) -> 11.66296578 | Z40: =IF(Z26="","",SUM(Z26:Z37)) -> 3244.487888 | AB40: =IF(AB26="","",AVERAGE(AB26:AB37)) -> 12.33218139 | AC40: =IF(Z40="","",Z40/$F$40*100) -> 12.36042473 | AH40: =IF(AH26="","",SUM(AH26:AH37)) -> 3355.545888 | AJ40: =IF(AJ26="","",AVERAGE(AJ26:AJ37)) -> 12.76010914 | AK40: =IF(AH40="","",AH40/$F$40*100) -> 12.78351895 | AP40: =IF(AP26="","",SUM(AP26:AP37)) -> 3528.284888 | AR40: =IF(AR26="","",AVERAGE(AR26:AR37)) -> 13.26405217 | AS40: =IF(AP40="","",AP40/$F$40*100) -> 13.44159735 | AX40: =IF(AX26="","",SUM(AX26:AX37)) -> 3207.934039 | AZ40: =IF(AZ26="","",AVERAGE(AZ26:AZ37)) -> 12.25222661 | BA40: =IF(AX40="","",AX40/$F$40*100) -> 12.22116667 | BF40: =IF(BF26="","",SUM(BF26:BF37)) -> 3726.817888 | BH40: =IF(BH26="","",AVERAGE(BH26:BH37)) -> 14.18221925 | BI40: =IF(BF40="","",BF40/$F$40*100) -> 14.19794235 | BN40: =IF(BN26="","",SUM(BN26:BN37)) -> 3002.949888 | BP40: =IF(BP26="","",AVERAGE(BP26:BP37)) -> 11.33780131 | BQ40: =IF(BN40="","",BN40/$F$40*100) -> 11.44024492
B44: * | C44: The TDU Company is fixed based on your address
B48: Manual Checks
H50: 1000 | I50: =H50*J7 -> 101 | J50: plan | P50: 1000 | Q50: =P50*R7 -> 93 | R50: plan | X50: 1000 | Y50: =X50*Z7 -> 101 | Z50: plan | AF50: 1000 | AG50: =AF50*AH7 -> 106 | AH50: plan
I51: =H50*J13 -> 41.112 | J51: tdu | Q51: =P50*R13 -> 41.112 | R51: tdu | Y51: =X50*Z13 -> 41.112 | Z51: tdu | AG51: =AF50*AH13 -> 41.112 | AH51: tdu
I52: =J6+J12 -> 15.42 | J52: base | Q52: =R6+R12 -> 15.42 | R52: base | Y52: =Z6+Z12 -> 15.42 | Z52: base | AG52: =AH6+AH12 -> 15.42 | AH52: base
I53: =SUM(I50:I52) -> 157.532 | J53: =I53/H50 -> 0.157532 | L53: =J53*100 -> 15.7532 | Q53: =SUM(Q50:Q52) -> 149.532 | R53: =Q53/P50 -> 0.149532 | T53: =R53*100 -> 14.9532 | Y53: =SUM(Y50:Y52) -> 157.532 | Z53: =Y53/X50 -> 0.157532 | AB53: =Z53*100 -> 15.7532 | AG53: =SUM(AG50:AG52) -> 162.532 | AH53: =AG53/AF50 -> 0.162532 | AJ53: =AH53*100 -> 16.2532
H56: 500 | I56: =H56*J7 -> 50.5 | J56: plan | P56: 500 | Q56: =P56*R7 -> 46.5 | R56: plan | X56: 500 | Y56: =X56*Z7 -> 50.5 | Z56: plan | AF56: 500 | AG56: =AF56*AH7 -> 53 | AH56: plan
I57: =H56*J13 -> 20.556 | J57: tdu | Q57: =P56*R13 -> 20.556 | R57: tdu | Y57: =X56*Z13 -> 20.556 | Z57: tdu | AG57: =AF56*AH13 -> 20.556 | AH57: tdu
I58: =J12+J6 -> 15.42 | J58: base | Q58: =R12+R6 -> 15.42 | R58: base | Y58: =Z12+Z6 -> 15.42 | Z58: base | AG58: =AH12+AH6 -> 15.42 | AH58: base
I59: =SUM(I56:I58) -> 86.476 | J59: =I59/H56 -> 0.172952 | L59: =J59*100 -> 17.2952 | Q59: =SUM(Q56:Q58) -> 82.476 | R59: =Q59/P56 -> 0.164952 | T59: =R59*100 -> 16.4952 | Y59: =SUM(Y56:Y58) -> 86.476 | Z59: =Y59/X56 -> 0.172952 | AB59: =Z59*100 -> 17.2952 | AG59: =SUM(AG56:AG58) -> 88.976 | AH59: =AG59/AF56 -> 0.177952 | AJ59: =AH59*100 -> 17.7952
B63: It is important to understand two facts concerning the prices for the standard usage tiers of 500/1000/2000
C65: This is NOT a Bill estimate, this is purely the cost OF the electricity and does not include any other fees or taxes! The TXU EFL description of "average price" is inaccurate as this is in no way an average but a precisely calculated number based upon discrete plan details!
C67: With respect to a manual check on the spreadsheet's calculations, it is important to note that in most cases, and TXU specifically, the choice of manually checking the lower end tiers of 500/1000 is done purposely because they fit inside the first pricing tier which simplifies the math by removing any concerns of errors or differences in properly evaluating the portion of the cost for the upper tiers. IF these lower tiers are inaccurate, we definitively know there is a problem!

Sheet data
C1: Period Ending | D1: from | E1: to | F1: Billing Days | G1: Dumbass Days | H1: kWh Used | I1: Curr Meter | J1: Prev Meter | K1: kWh Used | L1: KWh Diff | M1: Avg. High Temp | N1: Avg. Daily Use | O1: Plan Subtotal | P1: TDU Subtotal | Q1: Total Charges | R1: ¢ per kWh, Plan | S1: ¢ per kWh, TDU | U1: Total ¢ per kWh
A2: Reliant | C2: 19991111 | F2: 29 | G2: 29 | K2: 1054 | N2: =K2/F2 -> 36.34482759 | Q2: 84.56 | U2: =(Q2/K2)*100 -> 8.022770398
C3: 19991214 | F3: 33 | G3: 33 | K3: 1034 | N3: 31.33333333 | Q3: 83.29 | U3: 8.055125725
C4: 20000113 | F4: 30 | G4: 30 | K4: 814 | N4: 27.13333333 | Q4: 68.08 | U4: 8.363636364
C5: 20000214 | F5: 32 | G5: 32 | K5: 1024 | N5: 32 | Q5: 81.11 | U5: 7.920898438
C6: 20000313 | F6: 28 | G6: 28 | K6: 1143 | N6: 40.82142857 | Q6: 88.51 | U6: 7.743657043
C7: 20000412 | F7: 30 | G7: 30 | K7: 1219 | N7: 40.63333333 | Q7: 93.22 | U7: 7.647251846
C8: 20000512 | F8: 30 | G8: 30 | K8: 1975 | N8: 65.83333333 | Q8: 175.99 | U8: 8.910886076
C9: 20000613 | F9: 32 | G9: 32 | K9: 2803 | N9: 87.59375 | Q9: 252.64 | U9: 9.013200143
C10: 20000713 | F10: 30 | G10: 30 | K10: 3122 | N10: 104.0666667 | Q10: 282.17 | U10: 9.038116592
C11: 20000811 | F11: 29 | G11: 29 | K11: 3159 | N11: 108.9310345 | Q11: 285.6 | U11: 9.040835708
C12: 20000911 | F12: 31 | G12: 31 | K12: 3637 | N12: 117.3225806 | Q12: 366.06 | U12: 10.06488864
C13: 20001010 | F13: 29 | G13: 29 | K13: 2283 | N13: 78.72413793 | Q13: 227.2420001 | U13: 9.953657472
C14: 20001109 | F14: 30 | G14: 30 | K14: 1677 | N14: 55.9 | Q14: 138.33 | U14: 8.248658318
C15: 20001211 | F15: 32 | G15: 32 | K15: 820 | N15: 25.625 | Q15: 84.93 | U15: 10.35731707
C16: 20010115 | F16: 35 | G16: 35 | K16: 1061 | N16: 30.31428571 | Q16: 104.75 | U16: 9.872761546
C17: 20010213 | F17: 29 | G17: 29 | K17: 875 | N17: 30.17241379 | Q17: 89.46 | U17: 10.224
C18: 20010314 | F18: 29 | G18: 29 | K18: 961 | N18: 33.13793103 | Q18: 96.53 | U18: 10.04474506
C19: 20010412 | F19: 29 | G19: 29 | K19: 1279 | N19: 44.10344828 | Q19: 122.66 | U19: 9.590304926
C20: 20010514 | F20: 32 | G20: 32 | K20: 2070 | N20: 64.6875 | Q20: 239.32 | U20: 11.56135266
C21: 20010613 | F21: 30 | G21: 30 | K21: 2601 | N21: 86.7 | Q21: 302.45 | U21: 11.62821992
C22: 20010713 | F22: 30 | G22: 30 | K22: 3013 | N22: 100.4333333 | Q22: 351.45 | U22: 11.66445403
C23: 20010811 | F23: 29 | G23: 29 | K23: 3047 | N23: 105.0689655 | Q23: 336.49 | U23: 11.0433213
C24: 20010912 | F24: 32 | G24: 32 | K24: 2876 | N24: 89.875 | Q24: 317.22 | U24: 11.02990264
C25: 20011011 | F25: 29 | G25: 29 | K25: 1908 | N25: 65.79310345 | Q25: 208.15 | U25: 10.90932914
C26: 20011108 | F26: 28 | G26: 28 | K26: 642 | N26: 22.92857143 | Q26: 65.48 | U26: 10.19937695
C27: 20011211 | F27: 33 | G27: 33 | K27: 1300 | N27: 39.39393939 | Q27: 124.37 | U27: 9.566923077
C28: 20020114 | F28: 34 | G28: 34 | K28: 1071 | N28: 31.5 | Q28: 97.73 | U28: 9.125116713
C29: 20020212 | F29: 30 | G29: 30 | K29: 886 | N29: 29.53333333 | Q29: 74.51 | U29: 8.409706546
C30: 20020312 | F30: 28 | G30: 28 | K30: 825 | N30: 29.46428571 | Q30: 70.51 | U30: 8.546666667
C31: 20020411 | F31: 30 | G31: 30 | K31: 1279 | N31: 42.63333333 | Q31: 100.24 | U31: 7.837372948
C32: 20020513 | F32: 32 | G32: 32 | K32: 2621 | N32: 81.90625 | Q32: 188.11 | U32: 7.177031667
C33: 20020612 | F33: 30 | G33: 30 | K33: 2309 | N33: 76.96666667 | Q33: 210.96 | U33: 9.136422694
C34: 20020711 | F34: 29 | G34: 29 | K34: 2862 | N34: =K34/F34 -> 98.68965517 | Q34: 263.02 | U34: =(Q34/K34)*100 -> 9.190076869
C35: 20020809 | F35: 29 | G35: 29 | K35: 3220 | N35: 111.0344828 | Q35: 296.73 | U35: 9.215217391
C36: 20020910 | F36: 32 | G36: 32 | K36: 3053 | N36: 95.40625 | Q36: 296.62 | U36: 9.715689486
C37: 20021009 | F37: 29 | G37: 29 | K37: 2043 | N37: 70.44827586 | Q37: 196.36 | U37: 9.611355849
C38: 20021108 | F38: 30 | G38: 30 | K38: 1138 | N38: 37.93333333 | Q38: 106.52 | U38: 9.360281195
C39: 20021211 | F39: 33 | G39: 33 | K39: 1088 | N39: 32.96969697 | Q39: 93.3 | U39: 8.575367647
C40: 20030115 | F40: 35 | G40: 35 | K40: 1169 | N40: 33.4 | Q40: 101.8 | U40: 8.70829769
C41: 20030212 | F41: 28 | G41: 28 | K41: 839 | N41: 29.96428571 | Q41: 77.72 | U41: 9.26340882
C42: 20030314 | F42: 30 | G42: 30 | K42: 1008 | N42: 33.6 | Q42: 97.88 | U42: 9.71031746
C43: 20030414 | F43: 31 | G43: 31 | K43: 1193 | N43: 38.48387097 | Q43: 112.82 | U43: 9.456831517
C44: 20030513 | F44: 29 | G44: 29 | K44: 1849 | N44: 63.75862069 | Q44: 165.79 | U44: 8.966468361
C45: 20030613 | F45: 31 | G45: 31 | K45: 2498 | N45: 80.58064516 | Q45: 266.87 | U45: 10.68334668
C46: 20030715 | F46: 32 | G46: 32 | K46: 2670 | N46: 83.4375 | Q46: 285.69 | U46: 10.7
C47: 20030813 | F47: 29 | G47: 29 | K47: 2611 | N47: 90.03448276 | Q47: 303.95 | U47: 11.64113367
C48: 20030912 | F48: 30 | G48: 30 | K48: 2531 | N48: 84.36666667 | Q48: 294.44 | U48: 11.6333465
C49: 20031013 | F49: 31 | G49: 31 | K49: 2179 | N49: 70.29032258 | Q49: 252.59 | U49: 11.59201469
C50: 20031013 | F50: 31 | G50: 31 | K50: 2179 | N50: 70.29032258 | Q50: 252.59 | U50: 11.59201469
C51: 20031111 | F51: 29 | G51: 29 | K51: 1657 | N51: 57.13793103 | Q51: 190.55 | U51: 11.49969825
C52: 20031212 | F52: 31 | G52: 31 | K52: 1328 | N52: 42.83870968 | Q52: 136.29 | U52: 10.2628012
C53: 20040114 | F53: 33 | G53: 33 | K53: 1079 | N53: 32.6969697 | Q53: 113.82 | U53: 10.54865616
C54: 20040213 | F54: 30 | G54: 30 | K54: 930 | N54: 31 | Q54: 100.38 | U54: 10.79354839
C55: 20040315 | F55: 31 | G55: 31 | K55: 970 | N55: 31.29032258 | Q55: 104 | U55: 10.72164948
C56: 20040414 | F56: 30 | G56: 30 | K56: 1499 | N56: 49.96666667 | Q56: 151.72 | U56: 10.12141428
C57: 20040513 | F57: 29 | G57: 29 | K57: 1639 | N57: 56.51724138 | Q57: 164.35 | U57: 10.02745577
C58: 20040614 | F58: 32 | G58: 32 | K58: 2589 | N58: 80.90625 | Q58: 301.33 | U58: 11.6388567
C59: 20040714 | F59: 30 | G59: 30 | K59: 2219 | N59: 73.96666667 | Q59: 257.35 | U59: 11.59756647
C60: 20040812 | F60: 29 | G60: 29 | K60: 2552 | N60: 88 | Q60: 296.94 | U60: 11.63557994
C61: 20040911 | F61: 30 | G61: 30 | K61: 2288 | N61: 76.26666667 | Q61: 265.55 | U61: 11.60620629
C62: 20041012 | F62: 31 | G62: 31 | K62: 1388 | N62: 44.77419355 | Q62: 158.56 | U62: 11.42363112
C63: 20041213 | F63: 33 | G63: 33 | K63: 1183 | N63: 35.84848485 | Q63: 123.21 | U63: 10.41504649
C64: 20050113 | F64: 31 | G64: 31 | K64: 1086 | N64: 35.03225806 | Q64: 127.01 | U64: 11.69521179
C65: 20050214 | F65: 32 | G65: 32 | K65: 951 | N65: 29.71875 | Q65: 113.27 | U65: 11.9106204
C66: 20050315 | F66: 29 | G66: 29 | K66: 976 | N66: =K66/F66 -> 33.65517241 | Q66: 115.81 | U66: =(Q66/K66)*100 -> 11.86577869
C67: 20050414 | F67: 30 | G67: 30 | K67: 1095 | N67: 36.5 | Q67: 127.92 | U67: 11.68219178
C68: 20050513 | F68: 29 | G68: 29 | K68: 1348 | N68: 46.48275862 | Q68: 161.94 | U68: 12.01335312
C69: 20050614 | F69: 32 | G69: 32 | K69: 2647 | N69: 82.71875 | Q69: 355.07 | U69: 13.41405365
B70: X | C70: 20050715 | F70: 32 | G70: 32 | K70: 2647 | N70: =K70/F70 -> 82.71875 | Q70: 355.07 | U70: 13.41405365
C71: 20050812 | F71: 30 | G71: 30 | K71: 2378 | N71: 79.26666667 | Q71: 318.33 | U71: 13.38645921
C72: 20050913 | F72: 32 | G72: 32 | K72: 2714 | N72: 84.8125 | Q72: 366.43 | U72: 13.50147384
C73: 20051012 | F73: 29 | G73: 29 | K73: 2178 | N73: 75.10344828 | Q73: 292.79 | U73: 13.44306703
C74: 20051110 | F74: 29 | G74: 29 | K74: 1287 | N74: 44.37931034 | Q74: 194.23 | U74: 15.09168609
C75: 20051212 | F75: 32 | G75: 32 | K75: 1126 | N75: 35.1875 | Q75: 159.78 | U75: 14.19005329
C76: 20060116 | F76: 35 | G76: 35 | K76: 870 | N76: 24.85714286 | Q76: 137.05 | U76: 15.75287356
C77: 20060213 | F77: 28 | G77: 28 | K77: 920 | N77: 32.85714286 | Q77: 144.2 | U77: 15.67391304
C78: 20060315 | F78: 30 | G78: 30 | K78: 960 | N78: 32 | Q78: 149.75 | U78: 15.59895833
C79: 20060412 | F79: 28 | G79: 28 | K79: 1225 | N79: 43.75 | Q79: 192.61 | U79: 15.72326531
C80: 20060515 | F80: 33 | G80: 33 | K80: 2303 | N80: 69.78787879 | Q80: 347.6 | U80: 15.09335649
C81: 20060613 | F81: 29 | G81: 29 | K81: 2161 | M81: 89 | N81: 74.51724138 | Q81: 366.19 | U81: 16.94539565
C82: 20060714 | F82: 31 | G82: 31 | K82: 2659 | M82: 89 | N82: 85.77419355 | Q82: 452.07 | U82: 17.00150432
C83: 20060812 | F83: 29 | G83: 29 | K83: 2701 | M83: 92 | N83: 93.13793103 | Q83: 458.82 | U83: 16.98704184
C84: 20060913 | F84: 32 | G84: 32 | K84: 2389 | M84: 92 | N84: 74.65625 | Q84: 353.94 | U84: 14.81540393
C85: 20061012 | F85: 29 | G85: 29 | K85: 2010 | M85: 88 | N85: 69.31034483 | Q85: 320.1 | U85: 15.92537313
C86: 20061113 | F86: 32 | G86: 32 | K86: 1396 | M86: 78 | N86: 43.625 | Q86: 224.41 | U86: 16.0752149
C87: 20061214 | F87: 31 | G87: 31 | K87: 1120 | M87: 69 | N87: 36.12903226 | Q87: 181.38 | U87: 16.19464286
C88: 20070117 | F88: 34 | G88: 34 | K88: 1177 | M88: 65 | N88: 34.61764706 | Q88: 190.27 | U88: 16.16567545
C89: 20070215 | F89: 29 | G89: 29 | K89: 985 | M89: 58 | N89: 33.96551724 | Q89: 134.67 | U89: 13.67208122
C90: 20070316 | F90: 29 | G90: 29 | K90: 1060 | M90: 72 | N90: 36.55172414 | Q90: 172.04 | U90: 16.23018868
C91: 20070416 | F91: 31 | G91: 31 | K91: 1310 | M91: 75 | N91: 42.25806452 | Q91: 211.01 | U91: 16.10763359
C92: 20070516 | F92: 30 | G92: 30 | K92: 1648 | M92: 82 | N92: 54.93333333 | Q92: 255.75 | U92: 15.51881068
C93: 20070615 | F93: 30 | G93: 30 | K93: 2094 | M93: 86 | N93: 69.8 | Q93: 323.19 | U93: 15.43409742
C94: 20070716 | F94: 31 | G94: 31 | K94: 2427 | M94: 88 | N94: 78.29032258 | Q94: 373.66 | U94: 15.39596209
C95: 20070813 | F95: 28 | G95: 28 | K95: 2348 | M95: 91 | N95: 83.85714286 | Q95: 361.71 | U95: 15.40502555
C96: 20070914 | F96: 32 | G96: 32 | K96: 2678 | M96: 91 | N96: 83.6875 | Q96: 411.61 | U96: 15.37005228
C97: 20071012 | F97: 28 | G97: 28 | K97: 2155 | M97: 91 | N97: 76.96428571 | Q97: 334.02 | U97: 15.49976798
B98: X | C98: 20071115 | F98: 28 | G98: 28 | K98: 2155 | M98: 91 | N98: 76.96428571 | Q98: 334.02 | U98: 15.49976798
B99: X | C99: 20071215 | F99: 28 | G99: 28 | K99: 2155 | M99: 91 | N99: 76.96428571 | Q99: 334.02 | U99: 15.49976798
A100: TXU | B100: ü | C100: 20080118 | D100: 2007-12-14 | E100: 2008-01-16 | F100: =IF(OR(D100="", E100=""),"",DATEDIF(D100, E100, "d")) -> 33 | H100: 1228 | I100: 93984 | J100: 92756 | K100: =IF(OR(I100="",J100=""),"",IF((I100-J100)<0,I100-J100+100000,I100-J100)) -> 1228 | L100: =IF(OR(H100="", K100=""),"",K100-H100) -> 0 | N100: =IF(OR(F100="", K100=""),"",K100/F100) -> 37.21212121 | Q100: 167.02 | U100: =IF(OR(Q100="", K100=""),"", (Q100/K100)*100) -> 13.6009772
B101: ü | C101: 20080218 | D101: =IF(OR(C101="", E100=""),"",E100) -> 2008-01-16 | E101: 2008-02-13 | F101: =IF(OR(D101="", E101=""),"",DATEDIF(D101, E101, "d")) -> 28 | H101: 990 | I101: 94974 | J101: 93984 | K101: 990 | L101: =IF(OR(H101="", K101=""),"",K101-H101) -> 0 | N101: =IF(OR(F101="", K101=""),"",K101/F101) -> 35.35714286 | Q101: 134.65 | U101: 13.6010101
B102: ü | C102: 20080318 | D102: =IF(OR(C102="", E101=""),"",E101) -> 2008-02-13 | E102: 2008-03-14 | F102: 30 | H102: 1050 | I102: 96024 | J102: 94974 | K102: 1050 | L102: 0 | N102: 35 | Q102: 142.81 | U102: 13.60095238
B103: ü | C103: 20080417 | D103: =IF(OR(C103="", E102=""),"",E102) -> 2008-03-14 | E103: 2008-04-14 | F103: 31 | H103: 1497 | I103: 97521 | J103: 96024 | K103: 1497 | L103: 0 | N103: 48.29032258 | Q103: 203.61 | U103: 13.6012024
B104: ü | C104: 20080516 | D104: =IF(OR(C104="", E103=""),"",E103) -> 2008-04-14 | E104: 2008-05-14 | F104: 30 | H104: 1704 | I104: 99225 | J104: 97521 | K104: 1704 | L104: 0 | N104: 56.8 | Q104: 231.77 | U104: 13.60152582
B105: ü | C105: 20080617 | D105: 2008-05-14 | E105: 2008-06-16 | F105: 33 | H105: 2855 | I105: 2080 | J105: 99225 | K105: 2855 | L105: 0 | N105: 86.51515152 | Q105: 388.31 | U105: 13.60105079
B106: ü | C106: 20080717 | D106: 2008-06-16 | E106: 2008-07-16 | F106: 30 | H106: 2579 | I106: 4659 | J106: 2080 | K106: =IF(OR(I106="",J106=""),"",IF((I106-J106)<0,I106-J106+100000,I106-J106)) -> 2579 | L106: 0 | N106: 85.96666667 | Q106: 350.77 | U106: 13.60100814
B107: ü | C107: 20080815 | D107: 2008-07-16 | E107: 2008-08-14 | F107: 29 | H107: 2670 | I107: 7329 | J107: 4659 | K107: 2670 | L107: 0 | N107: 92.06896552 | Q107: 363.15 | U107: 13.6011236
B108: ü | C108: 20080916 | D108: 2008-08-14 | E108: 2008-09-12 | F108: 29 | H108: 2398 | I108: 9727 | J108: 7329 | K108: 2398 | L108: 0 | N108: 82.68965517 | Q108: 326.15 | U108: 13.60091743
B109: ü | C109: 20081015 | D109: 2008-09-12 | E109: 2008-10-13 | F109: 31 | H109: 501 | I109: 10228 | J109: 9727 | K109: 501 | L109: 0 | N109: 16.16129032 | Q109: 68.14 | U109: 13.6007984
B110: ü | C110: 20081114 | D110: 2008-10-13 | E110: 2008-11-11 | F110: 29 | H110: 2587 | I110: 12815 | J110: 10228 | K110: 2587 | L110: 0 | N110: 89.20689655 | Q110: 351.86 | U110: 13.60108233
B111: ü | C111: 20081216 | D111: 2008-11-11 | E111: 2008-12-13 | F111: 32 | H111: 1270 | I111: 14085 | J111: 12815 | K111: =IF(OR(I111="",J111=""),"",IF((I111-J111)<0,I111-J111+100000,I111-J111)) -> 1270 | L111: =IF(OR(H111="", K111=""),"",K111-H111) -> 0 | N111: 39.6875 | Q111: 172.58 | U111: 13.58897638
A112: txu-d+1 | B112: ü | C112: 20090120 | D112: =IF(OR(C112="", E111=""),"",E111) -> 2008-12-13 | E112: 2009-01-16 | F112: 34 | G112: 35 | H112: 1306 | I112: 15391 | J112: 14085 | K112: =IF(OR(I112="",J112=""),"",IF((I112-J112)<0,I112-J112+100000,I112-J112)) -> 1306 | L112: =IF(OR(H112="", K112=""),"",K112-H112) -> 0 | N112: 38.41176471 | Q112: 177.63 | U112: 13.60107198
A113: txu-d+1 | B113: ü | C113: 20090219 | D113: =IF(OR(C113="", E112=""),"",E112) -> 2009-01-16 | E113: 2009-02-13 | F113: 28 | G113: 29 | H113: 984 | I113: 16375 | J113: 15391 | K113: =IF(OR(I113="",J113=""),"",IF((I113-J113)<0,I113-J113+100000,I113-J113)) -> 984 | L113: =IF(OR(H113="", K113=""),"",K113-H113) -> 0 | N113: 35.14285714 | Q113: 137.13 | U113: 13.93597561
A114: txu-d+1 | B114: ü | C114: 20090325 | D114: =IF(OR(C114="", E113=""),"",E113) -> 2009-02-13 | E114: 2009-03-13 | F114: 28 | G114: 29 | H114: 1157 | I114: 17532 | J114: 16375 | K114: 1157 | L114: 0 | N114: 41.32142857 | Q114: =155.04+3.1+3.3 -> 161.44 | U114: 13.95332757
A115: txu-d+1 | B115: ü | C115: 20090421 | D115: =IF(OR(C115="", E114=""),"",E114) -> 2009-03-13 | E115: 2009-04-14 | F115: 32 | G115: 33 | H115: 1335 | I115: 18867 | J115: 17532 | K115: 1335 | L115: 0 | N115: 41.71875 | Q115: =178.89+2.68+3.29 -> 184.86 | U115: 13.84719101
A116: txu-d+1 | B116: ü | C116: 20090520 | D116: 2009-04-14 | E116: 2009-05-14 | F116: 30 | G116: 31 | H116: 1729 | I116: 20596 | J116: 18867 | K116: 1729 | L116: 0 | N116: 57.63333333 | Q116: =231.69+3.48+3.29 -> 238.46 | U116: 13.79178716
A117: txu-d+1 | B117: ü | C117: 20090623 | D117: 2009-05-14 | E117: 2009-06-15 | F117: 32 | G117: 33 | H117: 2300 | I117: 22896 | J117: 20596 | K117: 2300 | L117: 0 | N117: 71.875 | Q117: =308.2+4.62+3.29 -> 316.11 | U117: 13.74391304
A118: txu-d+1 | B118: ü | C118: 20090721 | D118: 2009-06-15 | E118: 2009-07-15 | F118: 30 | G118: 31 | H118: 2561 | I118: 25457 | J118: 22896 | K118: 2561 | L118: 0 | N118: 85.36666667 | Q118: =343.17+5.15+3.29 -> 351.61 | U118: 13.72940258
A119: txu-d+1 | B119: ü | C119: 20090819 | D119: 2009-07-15 | E119: 2009-08-14 | F119: 30 | G119: 31 | H119: 2701 | I119: 28158 | J119: 25457 | K119: 2701 | L119: 0 | N119: 90.03333333 | Q119: =361.93+5.43+3.24+0.05 -> 370.65 | U119: 13.7226953
A120: txu-d+1 | B120: ü | C120: 20090918 | D120: 2009-08-14 | E120: 2009-09-12 | F120: 29 | G120: 30 | H120: 2436 | I120: 30594 | J120: 28158 | K120: 2436 | L120: 0 | N120: 84 | Q120: =326.42+3.24+4.95 -> 334.61 | U120: 13.73604269
A121: txu-d+1 | B121: ü | C121: 20091017 | D121: 2009-09-12 | E121: 2009-10-11 | F121: 29 | G121: 30 | H121: 2061 | I121: 32655 | J121: 30594 | K121: 2061 | L121: 0 | N121: 71.06896552 | Q121: =276.17+3.24+4.19 -> 283.6 | U121: 13.76031053
B122: +1 | C122: 20091117 | D122: =IF(OR(C122="", E121=""),"",E121+1) -> 2009-10-12 | E122: 2009-11-10 | F122: 29 | G122: 29 | H122: 1458 | I122: 34113 | J122: 32655 | K122: 1458 | L122: 0 | N122: 50.27586207 | Q122: =195.37+3.24+2.98 -> 201.59 | U122: 13.82647462
B123: +1 | C123: 20091217 | D123: =IF(OR(C123="", E122=""),"",E122+1) -> 2009-11-11 | E123: 2009-12-14 | F123: 33 | G123: 33 | H123: 1255 | I123: 35368 | J123: 34113 | K123: 1255 | L123: 0 | N123: 38.03030303 | Q123: =168.17+4.01+2.58 -> 174.76 | U123: 13.9250996
B124: +1 | C124: 20100120 | D124: =IF(OR(C124="", E123=""),"",E123+1) -> 2009-12-15 | E124: 2010-01-15 | F124: 31 | G124: 31 | H124: 1277 | I124: 36645 | J124: 35368 | K124: =IF(OR(I124="",J124=""),"",IF((I124-J124)<0,I124-J124+100000,I124-J124)) -> 1277 | L124: =IF(OR(H124="", K124=""),"",K124-H124) -> 0 | N124: 41.19354839 | Q124: =171.12+4.57+2.64 -> 178.33 | U124: 13.96476116
B125: +1 | C125: 20100218 | D125: =IF(OR(C125="", E124=""),"",E124+1) -> 2010-01-16 | E125: 2010-02-15 | F125: 30 | G125: 30 | H125: 1234 | I125: 37879 | J125: 36645 | K125: 1234 | L125: 0 | N125: 41.13333333 | Q125: =165.36+4.52+2.55 -> 172.43 | U125: 13.9732577
B126: ü | C126: 20100319 | D126: =IF(OR(C126="", E125=""),"",E125) -> 2010-02-15 | E126: 2010-03-16 | F126: 29 | G126: 29 | H126: 1191 | I126: 39070 | J126: 37879 | K126: 1191 | L126: 0 | N126: 41.06896552 | Q126: =5.46+153.97+2.39+0.11 -> 161.93 | U126: 13.5961377
B127: ü | C127: 20100419 | D127: 2010-03-16 | E127: 2010-04-15 | F127: 30 | G127: 30 | H127: 1207 | I127: 40277 | J127: 39070 | K127: 1207 | L127: 0 | N127: 40.23333333 | Q127: 171.73 | U127: 14.22783761
B128: ü | C128: 20100519 | D128: 2010-04-15 | E128: 2010-05-13 | F128: 28 | G128: 28 | H128: 1782 | I128: 42059 | J128: 40277 | K128: 1782 | L128: 0 | N128: 63.64285714 | Q128: 245.1 | U128: 13.75420875
B129: ü | C129: 20100618 | D129: 2010-05-13 | E129: 2010-06-15 | F129: 33 | G129: 33 | H129: 2862 | I129: 44921 | J129: 42059 | K129: 2862 | L129: 0 | N129: 86.72727273 | Q129: 391.62 | U129: 13.68343816
B130: ü | C130: 20100719 | D130: 2010-06-15 | E130: 2010-07-15 | F130: 30 | G130: 30 | H130: 2919 | I130: 47840 | J130: 44921 | K130: 2919 | L130: 0 | N130: 97.3 | Q130: =419.45-19.58 -> 399.87 | U130: 13.69886948
B131: ü | C131: 20100818 | D131: 2010-07-15 | E131: 2010-08-12 | F131: 28 | G131: 28 | H131: 2718 | I131: 50558 | J131: 47840 | K131: 2718 | L131: 0 | N131: 97.07142857 | Q131: 372.59 | U131: 13.70824135
B132: ü | C132: 20100917 | D132: =IF(OR(C132="", E131=""),"",E131) -> 2010-08-12 | E132: 2010-09-09 | F132: 28 | G132: 28 | H132: 2642 | I132: 53200 | J132: 50558 | K132: 2642 | L132: 0 | N132: 94.35714286 | Q132: 362.28 | U132: =IF(OR(Q132="", K132=""),"", (Q132/K132)*100) -> 13.71233914
B133: ü | C133: 20101016 | D133: 2010-09-09 | E133: 2010-10-11 | F133: 32 | G133: 32 | H133: 2477 | I133: 55677 | J133: 53200 | K133: 2477 | L133: 0 | N133: 77.40625 | Q133: 358.02 | U133: 14.45377473
B134: ü | C134: 20101115 | D134: 2010-10-11 | E134: 2010-11-10 | F134: 30 | G134: 30 | H134: 1837 | I134: 57514 | J134: 55677 | K134: 1837 | L134: 0 | N134: 61.23333333 | Q134: 253.21 | U134: 13.78388677
B135: ü | C135: 20101217 | D135: 2010-11-10 | E135: 2010-12-13 | F135: 33 | G135: 33 | H135: 1609 | I135: 59123 | J135: 57514 | K135: 1609 | L135: 0 | N135: 48.75757576 | Q135: 222.27 | U135: 13.81417029
B136: ü | C136: 20110120 | D136: 2010-12-13 | E136: 2011-01-14 | F136: 32 | G136: 32 | H136: 1522 | I136: 60645 | J136: 59123 | K136: 1522 | L136: 0 | N136: 47.5625 | Q136: 210.34 | U136: 13.81997372
B137: ü | C137: 20110218 | D137: 2011-01-14 | E137: 2011-02-15 | F137: 32 | G137: 32 | H137: 1332 | I137: 61977 | J137: 60645 | K137: 1332 | L137: 0 | N137: 41.625 | Q137: 184.35 | U137: 13.84009009
B138: ü | C138: 20110319 | D138: 2011-02-15 | E138: 2011-03-15 | F138: 28 | G138: 28 | H138: 1352 | I138: 63329 | J138: 61977 | K138: 1352 | L138: 0 | N138: 48.28571429 | Q138: 187.07 | U138: 13.83653846
B139: ü | C139: 20110418 | D139: 2011-03-15 | E139: 2011-04-14 | F139: 30 | G139: 30 | H139: 1768 | I139: 65097 | J139: 63329 | K139: 1768 | L139: 0 | N139: 58.93333333 | Q139: 243.53 | U139: 13.77432127
C140: 20110519 | D140: 2011-04-14 | E140: 2011-05-15 | F140: 31 | G140: 31 | H140: 2310 | I140: 67407 | J140: 65097 | K140: 2310 | L140: 0 | N140: 74.51612903 | Q140: 317.1 | U140: 13.72727273
C141: 20110618 | D141: 2011-05-15 | E141: 2011-06-14 | F141: 30 | G141: 30 | H141: =2308+689 -> 2997 | I141: =68096+2308 -> 70404 | J141: 67407 | K141: 2997 | L141: 0 | N141: 99.9 | Q141: 410.34 | U141: 13.69169169
C142: 20110720 | D142: =IF(OR(C142="", E141=""),"",E141) -> 2011-06-14 | E142: 2011-07-14 | F142: 30 | G142: 30 | H142: 3301 | I142: 5609 | J142: 2308 | K142: 3301 | L142: 0 | N142: 110.0333333 | Q142: 451.62 | U142: 13.68130869
C143: 20110819 | D143: =IF(OR(C143="", E142=""),"",E142) -> 2011-07-14 | E143: 2011-08-14 | F143: =IF(OR(D143="", E143=""),"",DATEDIF(D143, E143, "d")) -> 31 | G143: 31 | H143: 3505 | I143: 9114 | J143: 5609 | K143: =IF(OR(I143="",J143=""),"",IF((I143-J143)<0,I143-J143+100000,I143-J143)) -> 3505 | L143: =IF(OR(H143="", K143=""),"",K143-H143) -> 0 | N143: =IF(OR(F143="", K143=""),"",K143/F143) -> 113.0645161 | Q143: 479.3 | U143: 13.67475036
C144: 20110917 | D144: =IF(OR(C144="", E143=""),"",E143) -> 2011-08-14 | E144: 2011-09-13 | F144: 30 | G144: 30 | H144: 3086 | I144: 12200 | J144: 9114 | K144: 3086 | L144: 0 | N144: 102.8666667 | Q144: 368.53 | U144: 11.94199611
C145: 20111017 | D145: =IF(OR(C145="", E144=""),"",E144) -> 2011-09-13 | E145: 2011-10-12 | F145: 29 | G145: 29 | H145: 2543 | I145: 14743 | J145: 12200 | K145: 2543 | L145: 0 | N145: 87.68965517 | Q145: 305.8 | U145: 12.02516713
C146: 20111116 | D146: 2011-10-12 | E146: 2011-11-10 | F146: 29 | G146: 29 | H146: 1808 | I146: 16551 | J146: 14743 | K146: 1808 | L146: 0 | N146: 62.34482759 | Q146: 221.71 | U146: 12.26272124
C147: 20111217 | D147: 2011-11-10 | E147: 2011-12-13 | F147: 33 | G147: 33 | H147: 1582 | I147: 18133 | J147: 16551 | K147: 1582 | L147: 0 | N147: 47.93939394 | Q147: 195.44 | U147: 12.3539823
C148: 20120120 | D148: 2011-12-13 | E148: 2012-01-16 | F148: 34 | G148: 34 | H148: 1459 | I148: 19592 | J148: 18133 | K148: 1459 | L148: 0 | N148: 42.91176471 | Q148: 181.31 | U148: 12.4270048
C149: 20120218 | D149: 2012-01-16 | E149: 2012-02-14 | F149: =IF(OR(D149="", E149=""),"",DATEDIF(D149, E149, "d")) -> 29 | G149: 29 | H149: 1459 | I149: 21051 | J149: 19592 | K149: =IF(OR(I149="",J149=""),"",IF((I149-J149)<0,I149-J149+100000,I149-J149)) -> 1459 | L149: =IF(OR(H149="", K149=""),"",K149-H149) -> 0 | N149: =IF(OR(F149="", K149=""),"",K149/F149) -> 50.31034483 | Q149: 184.54 | U149: 12.64838931
C150: 20120319 | D150: =IF(OR(C150="", E149=""),"",E149) -> 2012-02-14 | E150: 2012-03-14 | F150: 29 | G150: 29 | H150: 1346 | I150: 22397 | J150: 21051 | K150: 1346 | L150: 0 | N150: 46.4137931 | Q150: 179.49 | U150: 13.33506686
C151: 20120419 | D151: 2012-03-14 | E151: 2012-04-15 | F151: 32 | G151: 32 | H151: 2265 | I151: 24662 | J151: 22397 | K151: 2265 | L151: 0 | N151: 70.78125 | Q151: 278.22 | U151: 12.28344371
C152: 20120518 | D152: 2012-04-15 | E152: 2012-05-14 | F152: 29 | G152: 29 | H152: 2349 | I152: 27011 | J152: 24662 | K152: 2349 | L152: 0 | N152: 81 | Q152: 288.1 | U152: 12.26479353
C153: 20120618 | D153: 2012-05-14 | E153: 2012-06-13 | F153: 30 | G153: 30 | H153: 2566 | I153: 29577 | J153: 27011 | K153: 2566 | L153: 0 | N153: 85.53333333 | Q153: =425.09-111.48 -> 313.61 | U153: 12.22174591
C154: 20120719 | D154: 2012-06-13 | E154: 2012-07-15 | F154: 32 | G154: 32 | H154: 2667 | I154: 32244 | J154: 29577 | K154: 2667 | L154: 0 | N154: 83.34375 | Q154: 325.43 | U154: 12.20209974
C155: 20120817 | D155: 2012-07-15 | E155: 2012-08-13 | F155: 29 | G155: 29 | H155: 2719 | I155: 34963 | J155: 32244 | K155: 2719 | L155: 0 | N155: 93.75862069 | Q155: 331.58 | U155: 12.1949246
C156: 20120917 | D156: 2012-08-13 | E156: 2012-09-12 | F156: 30 | G156: 30 | H156: 2597 | I156: 37560 | J156: 34963 | K156: 2597 | L156: 0 | N156: 86.56666667 | Q156: 355.29 | U156: 13.68078552
C157: 20121017 | D157: 2012-09-12 | E157: 2012-10-11 | F157: 29 | G157: 29 | H157: 2050 | I157: 39610 | J157: 37560 | K157: 2050 | L157: 0 | N157: 70.68965517 | Q157: 283.61 | U157: 13.83463415
C158: 20121115 | D158: 2012-10-11 | E158: 2012-11-11 | F158: 31 | G158: 31 | H158: 1702 | I158: 41312 | J158: 39610 | K158: 1702 | L158: 0 | N158: 54.90322581 | Q158: 237.38 | U158: 13.94712103
C159: 20121217 | D159: 2012-11-11 | E159: 2012-12-12 | F159: 31 | G159: 31 | H159: 1331 | I159: 42643 | J159: 41312 | K159: 1331 | L159: 0 | N159: 42.93548387 | Q159: 200.57 | U159: 15.06912096
C160: 20130119 | D160: 2012-12-12 | E160: 2013-01-15 | F160: =IF(OR(D160="", E160=""),"",DATEDIF(D160, E160, "d")) -> 34 | G160: 34 | H160: 1330 | I160: 43973 | J160: 42643 | K160: =IF(OR(I160="",J160=""),"",IF((I160-J160)<0,I160-J160+100000,I160-J160)) -> 1330 | L160: =IF(OR(H160="", K160=""),"",K160-H160) -> 0 | N160: =IF(OR(F160="", K160=""),"",K160/F160) -> 39.11764706 | Q160: 187.99 | U160: 14.13458647
C161: 20130219 | D161: 2013-01-15 | E161: 2013-02-13 | F161: =IF(OR(D161="", E161=""),"",DATEDIF(D161, E161, "d")) -> 29 | G161: 29 | H161: 1135 | I161: 45108 | J161: 43973 | K161: =IF(OR(I161="",J161=""),"",IF((I161-J161)<0,I161-J161+100000,I161-J161)) -> 1135 | L161: =IF(OR(H161="", K161=""),"",K161-H161) -> 0 | N161: =IF(OR(F161="", K161=""),"",K161/F161) -> 39.13793103 | Q161: 162.61 | U161: 14.32687225
C162: 20130320 | D162: 2013-02-13 | E162: 2013-03-14 | F162: 29 | G162: 29 | H162: 1085 | I162: 46193 | J162: 45108 | K162: 1085 | L162: 0 | N162: 37.4137931 | Q162: 156.11 | U162: 14.38801843
C163: 20130419 | D163: 2013-03-14 | E163: 2013-04-15 | F163: 32 | G163: 32 | H163: 1642 | I163: 47835 | J163: 46193 | K163: 1642 | L163: 0 | N163: 51.3125 | Q163: 228.56 | U163: 13.91961023
C164: 20130518 | D164: =IF(OR(C164="", E163=""),"",E163) -> 2013-04-15 | E164: 2013-05-14 | F164: 29 | G164: 29 | H164: 1587 | I164: 49422 | J164: 47835 | K164: 1587 | L164: 0 | N164: 54.72413793 | Q164: 221.42 | U164: =IF(OR(Q164="", K164=""),"", (Q164/K164)*100) -> 13.9521109
C165: 20131619 | D165: 2013-05-14 | E165: 2013-06-13 | F165: 30 | G165: 30 | H165: 2513 | I165: 51935 | J165: 49422 | K165: 2513 | L165: 0 | N165: 83.76666667 | Q165: 341.89 | U165: 13.60485476
C166: 20130719 | D166: 2013-06-13 | E166: 2013-07-15 | F166: 32 | G166: 32 | H166: 3146 | I166: 55081 | J166: 51935 | K166: 3146 | L166: 0 | N166: 98.3125 | Q166: 424.25 | U166: 13.48537826
C167: 20130817 | D167: 2013-07-15 | E167: 2013-08-13 | F167: 29 | G167: 29 | H167: 2610 | I167: 57691 | J167: 55081 | K167: 2610 | L167: 0 | N167: 90 | Q167: 353.77 | U167: 13.55440613
C168: 20130918 | D168: 2013-08-13 | E168: 2013-09-12 | F168: 30 | G168: 30 | H168: 2585 | I168: 60276 | J168: 57691 | K168: 2585 | L168: 0 | N168: 86.16666667 | Q168: 348.56 | U168: 13.48394584
C169: 20131017 | D169: 2013-09-12 | E169: 2013-10-13 | F169: 31 | G169: 31 | H169: 2186 | I169: 62462 | J169: 60276 | K169: 2186 | L169: 0 | N169: 70.51612903 | Q169: 297.06 | U169: 13.58920403
C170: 20131115 | D170: 2013-10-13 | E170: 2013-11-11 | F170: 29 | G170: 29 | H170: 1255 | I170: 63717 | J170: 62462 | K170: 1255 | L170: 0 | N170: 43.27586207 | Q170: 177.14 | U170: 14.11474104
C171: 20131218 | D171: 2013-11-11 | E171: 2013-12-12 | F171: 31 | G171: 31 | H171: 1159 | I171: 64876 | J171: 63717 | K171: 1159 | L171: 0 | N171: 37.38709677 | Q171: 174.19 | U171: 15.02933563
C172: 20140121 | D172: 2013-12-12 | E172: 2014-01-15 | F172: =IF(OR(D172="", E172=""),"",DATEDIF(D172, E172, "d")) -> 34 | G172: 34 | H172: 1093 | I172: 65969 | J172: 64876 | K172: =IF(OR(I172="",J172=""),"",IF((I172-J172)<0,I172-J172+100000,I172-J172)) -> 1093 | L172: =IF(OR(H172="", K172=""),"",K172-H172) -> 0 | N172: =IF(OR(F172="", K172=""),"",K172/F172) -> 32.14705882 | Q172: 158.02 | U172: 14.45745654
C173: 20140219 | D173: 2014-01-15 | E173: 2014-02-13 | F173: 29 | G173: 29 | H173: 862 | I173: 66831 | J173: 65969 | K173: 862 | L173: 0 | N173: 29.72413793 | Q173: 127.86 | U173: 14.83294664
C174: 20140320 | D174: 2014-02-13 | E174: 2014-03-16 | F174: 31 | G174: 31 | H174: 1036 | I174: 67867 | J174: 66831 | K174: 1036 | L174: 0 | N174: 33.41935484 | Q174: 152.71 | U174: 14.74034749
C175: 20140418 | D175: 2014-03-16 | E175: 2014-04-14 | F175: 29 | G175: 29 | H175: 1083 | I175: 68950 | J175: 67867 | K175: 1083 | L175: 0 | N175: 37.34482759 | Q175: 159.02 | U175: 14.68328717
C176: 20140519 | D176: 2014-04-14 | E176: 2014-05-14 | F176: 30 | G176: 30 | H176: 1500 | I176: 70450 | J176: 68950 | K176: 1500 | L176: 0 | N176: 50 | Q176: 214.87 | U176: 14.32466667
C177: 20140619 | D177: 2014-05-14 | E177: 2014-06-14 | F177: 31 | G177: 31 | H177: 2216 | I177: 72666 | J177: 70450 | K177: 2216 | L177: 0 | N177: 71.48387097 | Q177: 341.06 | U177: 15.39079422
C178: 20140719 | D178: 2014-06-14 | E178: 2014-07-15 | F178: 31 | G178: 31 | H178: 2520 | I178: 75186 | J178: 72666 | K178: 2520 | L178: 0 | N178: 81.29032258 | Q178: 385.79 | U178: 15.30912698
C179: 20140818 | D179: 2014-07-15 | E179: 2014-08-13 | F179: 29 | G179: 29 | H179: 2410 | I179: 77596 | J179: 75186 | K179: 2410 | L179: 0 | N179: 83.10344828 | Q179: 369.57 | U179: 15.33485477
C180: 20140918 | D180: 2014-08-13 | E180: 2014-09-14 | F180: 32 | G180: 32 | H180: 2620 | I180: 80216 | J180: 77596 | K180: 2620 | L180: 0 | N180: 81.875 | Q180: 407.26 | U180: 15.54427481
C181: 20141017 | D181: 2014-09-14 | E181: 2014-10-13 | F181: 29 | G181: 29 | H181: 1967 | I181: 82183 | J181: 80216 | K181: 1967 | L181: 0 | N181: 67.82758621 | Q181: 309.23 | U181: 15.72089476
C182: 20141117 | D182: 2014-10-13 | E182: 2014-11-11 | F182: 29 | G182: 29 | H182: 1402 | I182: 83585 | J182: 82183 | K182: 1402 | L182: 0 | N182: 48.34482759 | Q182: 223.13 | U182: 15.91512126
C183: 20141218 | D183: 2014-11-11 | E183: 2014-12-14 | F183: 33 | G183: 33 | H183: 1212 | I183: 84797 | J183: 83585 | K183: 1212 | L183: 0 | N183: 36.72727273 | Q183: 194.87 | U183: 16.07838284
C184: 20150121 | D184: 2014-12-14 | E184: 2015-01-15 | F184: 32 | G184: 32 | H184: 1194 | I184: 85991 | J184: 84797 | K184: 1194 | L184: 0 | N184: 37.3125 | Q184: 190.36 | U184: 15.94304858
C185: 20150219 | D185: 2015-01-15 | E185: 2015-02-15 | F185: 31 | G185: 31 | H185: 1029 | I185: 87020 | J185: 85991 | K185: 1029 | L185: 0 | N185: 33.19354839 | Q185: 166.07 | U185: 16.13896987
C186: 20150320 | D186: =IF(OR(C186="", E185=""),"",E185) -> 2015-02-15 | E186: 2015-03-16 | F186: =IF(OR(D186="", E186=""),"",DATEDIF(D186, E186, "d")) -> 29 | G186: 29 | H186: 1022 | I186: 88042 | J186: 87020 | K186: =IF(OR(I186="",J186=""),"",IF((I186-J186)<0,I186-J186+100000,I186-J186)) -> 1022 | L186: =IF(OR(H186="", K186=""),"",K186-H186) -> 0 | N186: =IF(OR(F186="", K186=""),"",K186/F186) -> 35.24137931 | Q186: 163.69 | U186: 16.01663405
C187: 20150420 | D187: 2015-03-16 | E187: 2015-04-15 | F187: 30 | G187: 30 | H187: 1410 | I187: 89452 | J187: 88042 | K187: 1410 | L187: 0 | N187: 47 | Q187: 220.44 | U187: 15.63404255
C188: 20150520 | D188: 2015-04-15 | E188: 2015-05-14 | F188: 29 | G188: 29 | H188: 1649 | I188: 91101 | J188: 89452 | K188: 1649 | L188: 0 | N188: 56.86206897 | Q188: 255.43 | U188: 15.48999394
C189: 20150619 | D189: 2015-05-14 | E189: 2015-06-15 | F189: 32 | G189: 32 | H189: 2486 | I189: 93587 | J189: 91101 | K189: 2486 | L189: 0 | N189: 77.6875 | Q189: 374.73 | U189: 15.07361223
C190: 20150720 | D190: 2015-06-15 | E190: 2015-07-15 | F190: 30 | G190: 30 | H190: 2662 | I190: 96249 | J190: 93587 | K190: 2662 | L190: 0 | N190: 88.73333333 | Q190: 400.46 | U190: 15.04357626
C191: 20150819 | D191: 2015-07-15 | E191: 2015-08-13 | F191: 29 | G191: 29 | H191: 3008 | I191: 99257 | J191: 96249 | K191: 3008 | L191: 0 | N191: 103.7241379 | Q191: 451.1 | U191: 14.99667553
C192: 20150918 | D192: 2015-08-13 | E192: 2015-09-14 | F192: 32 | G192: 32 | H192: 2608 | I192: 1865 | J192: 99257 | K192: 2608 | L192: 0 | N192: 81.5 | Q192: 253.32 | U192: 9.713190184
C193: 20151017 | D193: 2015-09-14 | E193: 2015-10-13 | F193: 29 | G193: 29 | H193: 2178 | I193: 4043 | J193: 1865 | K193: 2178 | L193: 0 | N193: 75.10344828 | Q193: 204.37 | U193: 9.383379247
C194: 20151117 | D194: 2015-10-13 | E194: 2015-11-11 | F194: 29 | G194: 29 | H194: 1665 | I194: 5708 | J194: 4043 | K194: 1665 | L194: 0 | N194: 57.4137931 | Q194: 166.19 | U194: 9.981381381
C195: 20151218 | D195: 2015-11-11 | E195: 2015-12-14 | F195: 33 | G195: 33 | H195: 1391 | I195: 7099 | J195: 5708 | K195: 1391 | L195: 0 | N195: 42.15151515 | O195: 77.86 | P195: 65.23 | Q195: 145.24 | R195: =IF(OR(O195="",$K195=""), "", (O195/$K195)*100) -> 5.597411934 | S195: =IF(OR(P195="",$K195=""), "", (P195/$K195)*100) -> 4.689432063 | T195: =IF(OR(R195="",S195=""), "", R195+S195) -> 10.286844 | U195: 10.44140906
C196: 20160121 | D196: 2015-12-14 | E196: 2016-01-17 | F196: 34 | G196: 34 | H196: 1409 | I196: 8508 | J196: 7099 | K196: 1409 | L196: 0 | N196: 41.44117647 | O196: 78.44 | P196: 67.47 | Q196: 148.1 | R196: =IF(OR(O196="",$K196=""), "", (O196/$K196)*100) -> 5.567068843 | S196: =IF(OR(P196="",$K196=""), "", (P196/$K196)*100) -> 4.788502484 | T196: =IF(OR(R196="",S196=""), "", R196+S196) -> 10.35557133 | U196: =IF(OR(Q196="", K196=""),"", (Q196/K196)*100) -> 10.51100071
C197: 20160219 | D197: 2016-01-17 | E197: 2016-02-15 | F197: 29 | G197: 29 | H197: 1046 | I197: 9554 | J197: 8508 | K197: 1046 | L197: 0 | N197: 36.06896552 | O197: 76.89 | P197: 51.75 | Q197: 130.57 | R197: 7.350860421 | S197: 4.947418738 | T197: 12.29827916 | U197: 12.48279159
C198: 20160319 | D198: 2016-02-15 | E198: 2016-03-15 | F198: 29 | G198: 29 | H198: 1124 | I198: 10678 | J198: 9554 | K198: 1124 | L198: 0 | N198: 38.75862069 | O198: 81.89 | P198: 51.48 | Q198: 135.37 | R198: 7.285587189 | S198: 4.580071174 | T198: 11.86565836 | U198: 12.04359431
C199: 20160420 | D199: 2016-03-15 | E199: 2016-04-14 | F199: 30 | G199: 30 | H199: 1368 | I199: 12046 | J199: 10678 | K199: 1368 | L199: 0 | N199: 45.6 | O199: 77.13 | P199: 60.98 | Q199: 140.18 | R199: 5.638157895 | S199: 4.457602339 | T199: 10.09576023 | U199: 10.24707602
C200: 20160519 | D200: 2016-04-14 | E200: 2016-05-15 | F200: 31 | G200: 31 | H200: 2080 | I200: 14126 | J200: 12046 | K200: 2080 | L200: 0 | N200: 67.09677419 | O200: 102.71 | P200: 89.54 | Q200: 195.13 | R200: 4.937980769 | S200: 4.304807692 | T200: 9.242788462 | U200: 9.38125
... 27 more rows

Sheet Crude Oil-M-2018-June
A1: EIA Short-Term Energy Outlook, | C1: 2018-06-12 | M1: The hickie here is in what YEAR are we going to represent the prices? If we want to add prices moving forward, we must either continually redownload the entire series, which means we're going to want to manipulate it LESS; OR, we'll have to run our own Real prices conversion
A2: Monthly Average Imported Crude Oil Price
M3: Sources: | O3: https://www.eia.gov/outlooks/steo/realprices/
O4: https://www.eia.gov/petroleum/data.cfm#prices
O5: https://www.eia.gov/dnav/pet/pet_pri_spt_s1_d.htm | U5: WTI, West Texas Intermediate, (Texas Light Sweet), low sulfer, Benchmark in Oil Pricing, underlying commodity in NY Mercantile Exchange's Oil Futures Contracts
B38: Consumer Price | C38: Imported Crude Oil Price ($/barrel)
A39: Month | B39: Index (1982-84=1) | C39: Nominal | D39: Real | F39: =A593 -> EIA Short-Term Energy Outlook, June 2018
A40: 1974-01-01 | B40: 0.468 | C40: 9.59 | D40: =C40*$B$592/B40 -> 51.59223282 | F40: =A594 -> Forecast / estimated values shown in blue
A41: 1974-02-01 | B41: 0.473 | C41: 12.45 | D41: 66.27042875 | F41: =A595 -> Real Price (Jun 2018 $)
A42: 1974-03-01 | B42: 0.478 | C42: 12.73 | D42: 67.05205255 | F42: =A596 -> See Notes and Sources for more information
A43: 1974-04-01 | B43: 0.481 | C43: 12.72 | D43: 66.58150453
A44: 1974-05-01 | B44: 0.486 | C44: 13.02 | D44: 67.45067259
A45: 1974-06-01 | B45: 0.49 | C45: 13.06 | D45: 67.10558498
A46: 1974-07-01 | B46: 0.493 | C46: 12.75 | D46: 65.11406897
A47: 1974-08-01 | B47: 0.499 | C47: 12.68 | D47: 63.97794373
A48: 1974-09-01 | B48: 0.506 | C48: 12.53 | D48: 62.34650656
A49: 1974-10-01 | B49: 0.51 | C49: 12.44 | D49: 61.41320659
A50: 1974-11-01 | B50: 0.515 | C50: 12.53 | D50: 61.25695596
A51: 1974-12-01 | B51: 0.519 | C51: 12.82 | D51: 62.1916726
A52: 1975-01-01 | B52: 0.523 | C52: 12.77 | D52: 61.47531717
A53: 1975-02-01 | B53: 0.526 | C53: 13.05 | D53: 62.46494144
A54: 1975-03-01 | B54: 0.528 | C54: 13.28 | D54: 63.32507636
A55: 1975-04-01 | B55: 0.53 | C55: 13.26 | D55: 62.9911046
A56: 1975-05-01 | B56: 0.531 | C56: 13.27 | D56: 62.91989243
A57: 1975-06-01 | B57: 0.535 | C57: 14.15 | D57: 66.59079925
A58: 1975-07-01 | B58: 0.54 | C58: 14.03 | D58: 65.41471911
A59: 1975-08-01 | B59: 0.542 | C59: 14.25 | D59: 66.19529889
A60: 1975-09-01 | B60: 0.546 | C60: 14.04 | D60: 64.74198857
A61: 1975-10-01 | B61: 0.549 | C61: 14.66 | D61: 67.23156109
A62: 1975-11-01 | B62: 0.553 | C62: 15.04 | D62: 68.47535219
A63: 1975-12-01 | B63: 0.556 | C63: 14.81 | D63: 67.06436806
A64: 1976-01-01 | B64: 0.558 | C64: 13.27 | D64: 59.87538151
A65: 1976-02-01 | B65: 0.559 | C65: 13.26 | D65: 59.72322977
A66: 1976-03-01 | B66: 0.56 | C66: 13.51 | D66: 60.740574
A67: 1976-04-01 | B67: 0.561 | C67: 13.39 | D67: 60.09374717
A68: 1976-05-01 | B68: 0.564 | C68: 13.41 | D68: 59.86338128
A69: 1976-06-01 | B69: 0.567 | C69: 13.48 | D69: 59.8574764
A70: 1976-07-01 | B70: 0.57 | C70: 13.51 | D70: 59.67494989
A71: 1976-08-01 | B71: 0.573 | C71: 13.58 | D71: 59.6700934
A72: 1976-09-01 | B72: 0.576 | C72: 13.47 | D72: 58.8784925
A73: 1976-10-01 | B73: 0.579 | C73: 13.49 | D73: 58.6603913
A74: 1976-11-01 | B74: 0.581 | C74: 13.58 | D74: 58.84847422
A75: 1976-12-01 | B75: 0.584 | C75: 13.71 | D75: 59.10662712
A76: 1977-01-01 | B76: 0.587 | C76: 14.11 | D76: 60.52021779
A77: 1977-02-01 | B77: 0.593 | C77: 14.5 | D77: 61.56372344
A78: 1977-03-01 | B78: 0.596 | C78: 14.54 | D78: 61.42281503
A79: 1977-04-01 | B79: 0.6 | C79: 14.36 | D79: 60.2580064
A80: 1977-05-01 | B80: 0.602 | C80: 14.62 | D80: 61.14521143
A81: 1977-06-01 | B81: 0.605 | C81: 14.63 | D81: 60.88362764
A82: 1977-07-01 | B82: 0.608 | C82: 14.44 | D82: 59.79642
A83: 1977-08-01 | B83: 0.611 | C83: 14.68 | D83: 60.4917871
A84: 1977-09-01 | B84: 0.613 | C84: 14.5 | D84: 59.55511909
A85: 1977-10-01 | B85: 0.616 | C85: 14.56 | D85: 59.51031273
A86: 1977-11-01 | B86: 0.62 | C86: 14.61 | D86: 59.3294191
A87: 1977-12-01 | B87: 0.623 | C87: 14.76 | D87: 59.64992205
A88: 1978-01-01 | B88: 0.627 | C88: 14.52 | D88: 58.30565053
A89: 1978-02-01 | B89: 0.63 | C89: 14.41 | D89: 57.58839848
A90: 1978-03-01 | B90: 0.634 | C90: 14.57 | D90: 57.86045754
A91: 1978-04-01 | B91: 0.639 | C91: 14.4 | D91: 56.73789296
A92: 1978-05-01 | B92: 0.645 | C92: 14.51 | D92: 56.6394813
A93: 1978-06-01 | B93: 0.65 | C93: 14.54 | D93: 56.31999655
A94: 1978-07-01 | B94: 0.655 | C94: 14.49 | D94: 55.69787872
A95: 1978-08-01 | B95: 0.659 | C95: 14.46 | D95: 55.24518701
A96: 1978-09-01 | B96: 0.665 | C96: 14.53 | D96: 55.01175988
A97: 1978-10-01 | B97: 0.671 | C97: 14.63 | D97: 54.8950741
A98: 1978-11-01 | B98: 0.675 | C98: 14.74 | D98: 54.98006898
A99: 1978-12-01 | B99: 0.679 | C99: 14.94 | D99: 55.39778404
A100: 1979-01-01 | B100: 0.685 | C100: 15.5 | D100: 56.97084964
A101: 1979-02-01 | B101: 0.692 | C101: 15.88 | D101: 57.7771311
A102: 1979-03-01 | B102: 0.699 | C102: 16.41 | D102: 59.10755227
A103: 1979-04-01 | B103: 0.706 | C103: 17.58 | D103: 62.69396533
A104: 1979-05-01 | B104: 0.714 | C104: 19 | D104: =C104*$B$592/B104 -> 66.99878992
A105: 1979-06-01 | B105: 0.722 | C105: 21.03 | D105: 73.33539657
A106: 1979-07-01 | B106: 0.73 | C106: 23.09 | D106: 79.63658762
A107: 1979-08-01 | B107: 0.737 | C107: 23.98 | D107: 81.92062567
A108: 1979-09-01 | B108: 0.744 | C108: 25.06 | D108: 84.80465677
A109: 1979-10-01 | B109: 0.752 | C109: 25.05 | D109: 83.86899894
A110: 1979-11-01 | B110: 0.76 | C110: 27.02 | D110: 89.51242484
A111: 1979-12-01 | B111: 0.769 | C111: 28.91 | D111: 94.65276858
A112: 1980-01-01 | B112: 0.78 | C112: 30.75 | D112: 99.25721538
A113: 1980-02-01 | B113: 0.79 | C113: 32.4 | D113: 103.2593742
A114: 1980-03-01 | B114: 0.801 | C114: 33.42 | D114: 105.0474463
A115: 1980-04-01 | B115: 0.809 | C115: 33.54 | D115: 104.3821184
A116: 1980-05-01 | B116: 0.817 | C116: 34.33 | D116: 105.7945551
A117: 1980-06-01 | B117: 0.825 | C117: 34.48 | D117: 105.2264401
A118: 1980-07-01 | B118: 0.826 | C118: 34.51 | D118: 105.1904908
A119: 1980-08-01 | B119: 0.832 | C119: 34.44 | D119: 104.2200762
A120: 1980-09-01 | B120: 0.839 | C120: 34.46 | D120: 103.4105581
A121: 1980-10-01 | B121: 0.847 | C121: 34.63 | D121: 102.9391673
A122: 1980-11-01 | B122: 0.856 | C122: 35.09 | D122: 103.2098563
A123: 1980-12-01 | B123: 0.864 | C123: 35.63 | D123: 103.8277994
A124: 1981-01-01 | B124: 0.872 | C124: 38.85 | D124: 112.1724248
A125: 1981-02-01 | B125: 0.88 | C125: 39 | D125: 111.5818364
A126: 1981-03-01 | B126: 0.886 | C126: 38.31 | D126: 108.8654319
A127: 1981-04-01 | B127: 0.891 | C127: 38.41 | D127: 108.5370898
A128: 1981-05-01 | B128: 0.897 | C128: 37.84 | D128: 106.211185
A129: 1981-06-01 | B129: 0.905 | C129: 37.03 | D129: 103.0188512
A130: 1981-07-01 | B130: 0.915 | C130: 36.58 | D130: 100.6547273
A131: 1981-08-01 | B131: 0.922 | C131: 35.82 | D131: 97.81517362
A132: 1981-09-01 | B132: 0.931 | C132: 35.44 | D132: 95.84194131
A133: 1981-10-01 | B133: 0.934 | C133: 35.43 | D133: 95.50714124
A134: 1981-11-01 | B134: 0.938 | C134: 36.21 | D134: 97.19350772
A135: 1981-12-01 | B135: 0.941 | C135: 35.95 | D135: 96.1879881
A136: 1982-01-01 | B136: 0.944 | C136: 35.54 | D136: 94.78879424
A137: 1982-02-01 | B137: 0.947 | C137: 35.48 | D137: 94.32899379
A138: 1982-03-01 | B138: 0.947 | C138: 34.07 | D138: 90.58029364
A139: 1982-04-01 | B139: 0.95 | C139: 32.82 | D139: 86.98142956
A140: 1982-05-01 | B140: 0.959 | C140: 32.78 | D140: 86.06011295
A141: 1982-06-01 | B141: 0.97 | C141: 33.79 | D141: 87.70574202
A142: 1982-07-01 | B142: 0.975 | C142: 33.44 | D142: 86.35216345
A143: 1982-08-01 | B143: 0.977 | C143: 32.95 | D143: 84.91265589
A144: 1982-09-01 | B144: 0.977 | C144: 33.03 | D144: 85.11881711
A145: 1982-10-01 | B145: 0.981 | C145: 33.28 | D145: 85.41337443
A146: 1982-11-01 | B146: 0.98 | C146: 33.09 | D146: 85.0123969
A147: 1982-12-01 | B147: 0.977 | C147: 32.85 | D147: 84.65495435
A148: 1983-01-01 | B148: 0.979 | C148: 31.4 | D148: 80.75297406
A149: 1983-02-01 | B149: 0.98 | C149: 30.76 | D149: 79.02633208
A150: 1983-03-01 | B150: 0.981 | C150: 28.43 | D150: 72.96581235
A151: 1983-04-01 | B151: 0.988 | C151: 27.95 | D151: 71.22565263
A152: 1983-05-01 | B152: 0.992 | C152: 28.53 | D152: 72.41052048
A153: 1983-06-01 | B153: 0.994 | C153: 29.23 | D153: 74.03788443
A154: 1983-07-01 | B154: 0.998 | C154: 28.76 | D154: 72.5554283
A155: 1983-08-01 | B155: 1.001 | C155: 29.5 | D155: 74.19924875
A156: 1983-09-01 | B156: 1.004 | C156: 29.54 | D156: 74.07784637
A157: 1983-10-01 | B157: 1.008 | C157: 29.67 | D157: 74.10859571
A158: 1983-11-01 | B158: 1.011 | C158: 29.09 | D158: 72.44428582
A159: 1983-12-01 | B159: 1.014 | C159: 29.3 | D159: 72.75137988
A160: 1984-01-01 | B160: 1.021 | C160: 28.8 | D160: 71.01961528
A161: 1984-02-01 | B161: 1.026 | C161: 28.91 | D161: 70.94344936
A162: 1984-03-01 | B162: 1.029 | C162: 28.95 | D162: 70.83448863
A163: 1984-04-01 | B163: 1.033 | C163: 29.11 | D163: 70.95017216
A164: 1984-05-01 | B164: 1.035 | C164: 29.26 | D164: 71.17796081
A165: 1984-06-01 | B165: 1.037 | C165: 29.19 | D165: 70.87073034
A166: 1984-07-01 | B166: 1.041 | C166: 29 | D166: 70.13888184
A167: 1984-08-01 | B167: 1.044 | C167: 28.92 | D167: 69.74440276
A168: 1984-09-01 | B168: 1.047 | C168: 28.7 | D168: =C168*$B$592/B168 -> 69.01552321
A169: 1984-10-01 | B169: 1.051 | C169: 28.79 | D169: 68.96845838
A170: 1984-11-01 | B170: 1.053 | C170: 28.74 | D170: 68.71791316
A171: 1984-12-01 | B171: 1.055 | C171: 28.02 | D171: 66.86937145
A172: 1985-01-01 | B172: 1.057 | C172: 27.49 | D172: 65.48039977
A173: 1985-02-01 | B173: 1.063 | C173: 26.99 | D173: 63.92653863
A174: 1985-03-01 | B174: 1.068 | C174: 27.2 | D174: 64.1223191
A175: 1985-04-01 | B175: 1.07 | C175: 27.59 | D175: 64.92014669
A176: 1985-05-01 | B176: 1.072 | C176: 27.6 | D176: 64.82251343
A177: 1985-06-01 | B177: 1.075 | C177: 27.25 | D177: 63.82188279
A178: 1985-07-01 | B178: 1.077 | C178: 26.57 | D178: 62.11370295
A179: 1985-08-01 | B179: 1.079 | C179: 26.61 | D179: 62.09190717
A180: 1985-09-01 | B180: 1.081 | C180: 26.56 | D180: 61.86057414
A181: 1985-10-01 | B181: 1.085 | C181: 26.79 | D181: 62.16623204
A182: 1985-11-01 | B182: 1.09 | C182: 27.12 | D182: 62.64331861
A183: 1985-12-01 | B183: 1.095 | C183: 26.21 | D183: 60.26490433
A184: 1986-01-01 | B184: 1.099 | C184: 24.93 | D184: 57.11315552
A185: 1986-02-01 | B185: 1.097 | C185: 18.11 | D185: 41.56457962
A186: 1986-03-01 | B186: 1.091 | C186: 14.22 | D186: 32.81605837
A187: 1986-04-01 | B187: 1.087 | C187: 13.15 | D187: 30.45844857
A188: 1986-05-01 | B188: 1.09 | C188: 13.17 | D188: 30.42081512
A189: 1986-06-01 | B189: 1.094 | C189: 12.25 | D189: 28.19228885
A190: 1986-07-01 | B190: 1.095 | C190: 10.91 | D190: 25.08546762
A191: 1986-08-01 | B191: 1.096 | C191: 11.87 | D191: 27.26790263
A192: 1986-09-01 | B192: 1.1 | C192: 12.85 | D192: 29.41182764
A193: 1986-10-01 | B193: 1.102 | C193: 12.78 | D193: 29.19851935
A194: 1986-11-01 | B194: 1.104 | C194: 13.46 | D194: 30.69640783
A195: 1986-12-01 | B195: 1.108 | C195: 14.17 | D195: 32.19894628
A196: 1987-01-01 | B196: 1.114 | C196: 16.45 | D196: 37.17853573
A197: 1987-02-01 | B197: 1.118 | C197: 16.98 | D197: 38.2390815
A198: 1987-03-01 | B198: 1.122 | C198: 17.26 | D198: 38.7310708
A199: 1987-04-01 | B199: 1.127 | C199: 17.89 | D199: 39.96667272
A200: 1987-05-01 | B200: 1.13 | C200: 18.25 | D200: 40.66267965
A201: 1987-06-01 | B201: 1.135 | C201: 18.71 | D201: 41.50395616
A202: 1987-07-01 | B202: 1.138 | C202: 19.26 | D202: 42.61137912
A203: 1987-08-01 | B203: 1.143 | C203: 19.32 | D203: 42.55714268
A204: 1987-09-01 | B204: 1.147 | C204: 18.57 | D204: 40.76242901
A205: 1987-10-01 | B205: 1.15 | C205: 18.53 | D205: 40.56851854
A206: 1987-11-01 | B206: 1.154 | C206: 18.14 | D206: 39.57701574
A207: 1987-12-01 | B207: 1.156 | C207: 17.2 | D207: 37.46124291
A208: 1988-01-01 | B208: 1.16 | C208: 15.45 | D208: 33.53374552
A209: 1988-02-01 | B209: 1.162 | C209: 15.43 | D209: 33.43269356
A210: 1988-03-01 | B210: 1.165 | C210: 14.73 | D210: 31.83379324
A211: 1988-04-01 | B211: 1.172 | C211: 15.62 | D211: 33.55559836
A212: 1988-05-01 | B212: 1.175 | C212: 15.93 | D212: 34.13418036
A213: 1988-06-01 | B213: 1.18 | C213: 15.5 | D213: 33.07206102
A214: 1988-07-01 | B214: 1.185 | C214: 14.81 | D214: 31.4664883
A215: 1988-08-01 | B215: 1.19 | C215: 14.32 | D215: 30.29755805
A216: 1988-09-01 | B216: 1.195 | C216: 13.84 | D216: 29.15947863
A217: 1988-10-01 | B217: 1.199 | C217: 13.05 | D217: 27.40330209
A218: 1988-11-01 | B218: 1.203 | C218: 12.66 | D218: 26.4959593
A219: 1988-12-01 | B219: 1.207 | C219: 14.11 | D219: 29.43278197
A220: 1989-01-01 | B220: 1.212 | C220: 16.04 | D220: 33.32063842
A221: 1989-02-01 | B221: 1.216 | C221: 16.61 | D221: 34.39122355
A222: 1989-03-01 | B222: 1.222 | C222: 17.77 | D222: 36.6123657
A223: 1989-04-01 | B223: 1.231 | C223: 19.59 | D223: 40.06710395
A224: 1989-05-01 | B224: 1.237 | C224: 19.05 | D224: 38.77366467
A225: 1989-06-01 | B225: 1.241 | C225: 18.27 | D225: 37.06622311
A226: 1989-07-01 | B226: 1.245 | C226: 17.99 | D226: 36.38089523
A227: 1989-08-01 | B227: 1.245 | C227: 17.23 | D227: 34.84395913
A228: 1989-09-01 | B228: 1.248 | C228: 17.62 | D228: 35.54699462
A229: 1989-10-01 | B229: 1.254 | C229: 18.29 | D229: 36.72211943
A230: 1989-11-01 | B230: 1.259 | C230: 18.32 | D230: 36.63627488
A231: 1989-12-01 | B231: 1.263 | C231: 20.05 | D231: 39.96893682
A232: 1990-01-01 | B232: 1.275 | C232: 20.51 | D232: =C232*$B$592/B232 -> 40.50112113
... 364 more rows

Sheet Natural Gas-M-2018-June
A1: EIA Short-Term Energy Outlook, | C1: 2018-06-12
A2: Monthly Average Residential Natural Gas Price
M3: Source: | O3: https://www.eia.gov/dnav/ng/ng_pri_sum_dcu_nus_m.htm
B38: Consumer Price | C38: Residential Natural Gas Price ($/mcf)
A39: Month | B39: Index (1982-84=1) | C39: Nominal | D39: Real | F39: =A509 -> EIA Short-Term Energy Outlook, June 2018
A40: 1981-01-01 | B40: 0.872 | C40: 3.94 | D40: =C40*$B$508/B40 -> 11.37604514 | F40: =A510 -> Forecast / estimated values shown in blue
A41: 1981-02-01 | B41: 0.88 | C41: 3.99 | D41: 11.41568018 | F41: =A511 -> Values shown for recent months are estimates if official historical data has not yet been released
A42: 1981-03-01 | B42: 0.886 | C42: 4.06 | D42: 11.53729192 | F42: =A512 -> Real Price (Jun 2018 $)
A43: 1981-04-01 | B43: 0.891 | C43: 4.11 | D43: 11.61383596 | F43: =A513 -> See Notes and Sources for more information
A44: 1981-05-01 | B44: 0.897 | C44: 4.29 | D44: 12.04138435
A45: 1981-06-01 | B45: 0.905 | C45: 4.3 | D45: 11.96276155
A46: 1981-07-01 | B46: 0.915 | C46: 4.32 | D46: 11.88705364
A47: 1981-08-01 | B47: 0.922 | C47: 4.3 | D47: 11.74219002
A48: 1981-09-01 | B48: 0.931 | C48: 4.47 | D48: 12.08841641
A49: 1981-10-01 | B49: 0.934 | C49: 4.5 | D49: 12.13045824
A50: 1981-11-01 | B50: 0.938 | C50: 4.53 | D50: 12.15925407
A51: 1981-12-01 | B51: 0.941 | C51: 4.55 | D51: 12.17400128
A52: 1982-01-01 | B52: 0.944 | C52: 4.65 | D52: 12.40202288
A53: 1982-02-01 | B53: 0.947 | C53: 4.69 | D53: 12.46908063
A54: 1982-03-01 | B54: 0.947 | C54: 4.78 | D54: 12.70835937
A55: 1982-04-01 | B55: 0.95 | C55: 4.86 | D55: 12.88024825
A56: 1982-05-01 | B56: 0.959 | C56: 5.17 | D56: 13.57323929
A57: 1982-06-01 | B57: 0.97 | C57: 5.2 | D57: 13.49718433
A58: 1982-07-01 | B58: 0.975 | C58: 5.23 | D58: 13.50543705
A59: 1982-08-01 | B59: 0.977 | C59: 5.23 | D59: 13.4777903
A60: 1982-09-01 | B60: 0.977 | C60: 5.41 | D60: 13.94165306
A61: 1982-10-01 | B61: 0.981 | C61: 5.66 | D61: 14.52643327
A62: 1982-11-01 | B62: 0.98 | C62: 5.68 | D62: 14.59263869
A63: 1982-12-01 | B63: 0.977 | C63: 5.74 | D63: 14.79206813
A64: 1983-01-01 | B64: 0.979 | C64: 5.86 | D64: 15.07045949
A65: 1983-02-01 | B65: 0.98 | C65: 5.87 | D65: 15.08077273
A66: 1983-03-01 | B66: 0.981 | C66: 6 | D66: 15.39904587
A67: 1983-04-01 | B67: 0.988 | C67: 6.06 | D67: 15.44284275
A68: 1983-05-01 | B68: 0.992 | C68: 6.22 | D68: 15.78666097
A69: 1983-06-01 | B69: 0.994 | C69: 6.2 | D69: 15.70423823
A70: 1983-07-01 | B70: 0.998 | C70: 6.21 | D70: 15.66652329
A71: 1983-08-01 | B71: 1.001 | C71: 6.18 | D71: 15.54411381
A72: 1983-09-01 | B72: 1.004 | C72: 6.19 | D72: 15.52274438
A73: 1983-10-01 | B73: 1.008 | C73: 6.7 | D73: 16.73500476
A74: 1983-11-01 | B74: 1.011 | C74: 6.3 | D74: 15.68920593
A75: 1983-12-01 | B75: 1.014 | C75: 5.94 | D75: 14.74891456
A76: 1984-01-01 | B76: 1.021 | C76: 5.78 | D76: 14.25324223
A77: 1984-02-01 | B77: 1.026 | C77: 5.84 | D77: 14.33101848
A78: 1984-03-01 | B78: 1.029 | C78: 5.92 | D78: 14.48498006
A79: 1984-04-01 | B79: 1.033 | C79: 5.96 | D79: 14.52638358
A80: 1984-05-01 | B80: 1.035 | C80: 6.27 | D80: 15.25242017
A81: 1984-06-01 | B81: 1.037 | C81: 6.76 | D81: 16.41268027
A82: 1984-07-01 | B82: 1.041 | C82: 7.11 | D82: 17.19611896
A83: 1984-08-01 | B83: 1.044 | C83: 7.23 | D83: 17.43610069
A84: 1984-09-01 | B84: 1.047 | C84: 7.17 | D84: 17.24185719
A85: 1984-10-01 | B85: 1.051 | C85: 6.8 | D85: 16.28987555
A86: 1984-11-01 | B86: 1.053 | C86: 6.31 | D86: 15.08733584
A87: 1984-12-01 | B87: 1.055 | C87: 6.05 | D87: 14.43824758
A88: 1985-01-01 | B88: 1.057 | C88: 5.97 | D88: 14.22037056
A89: 1985-02-01 | B89: 1.063 | C89: 5.86 | D89: 13.87956711
A90: 1985-03-01 | B90: 1.068 | C90: 5.99 | D90: 14.12105483
A91: 1985-04-01 | B91: 1.07 | C91: 6.11 | D91: 14.37702415
A92: 1985-05-01 | B92: 1.072 | C92: 6.59 | D92: 15.4775494
A93: 1985-06-01 | B93: 1.075 | C93: 6.96 | D93: 16.3009286
A94: 1985-07-01 | B94: 1.077 | C94: 7.07 | D94: 16.5278088
A95: 1985-08-01 | B95: 1.079 | C95: 7.21 | D95: 16.82385008
A96: 1985-09-01 | B96: 1.081 | C96: 7.06 | D96: 16.44336044
A97: 1985-10-01 | B97: 1.085 | C97: 6.5 | D97: 15.08325899
A98: 1985-11-01 | B98: 1.09 | C98: 6.13 | D98: 14.15942268
A99: 1985-12-01 | B99: 1.095 | C99: 5.7 | D99: 13.10606466
A100: 1986-01-01 | B100: 1.099 | C100: 5.63 | D100: 12.89799702
A101: 1986-02-01 | B101: 1.097 | C101: 5.67 | D101: 13.01331675
A102: 1986-03-01 | B102: 1.091 | C102: 5.71 | D102: 13.17719362
A103: 1986-04-01 | B103: 1.087 | C103: 5.89 | D103: 13.64260548
A104: 1986-05-01 | B104: 1.09 | C104: 6.18 | D104: =C104*$B$508/B104 -> 14.27491552
A105: 1986-06-01 | B105: 1.094 | C105: 6.67 | D105: 15.3504136
A106: 1986-07-01 | B106: 1.095 | C106: 6.84 | D106: 15.72727759
A107: 1986-08-01 | B107: 1.096 | C107: 6.94 | D107: 15.94264905
A108: 1986-09-01 | B108: 1.1 | C108: 6.83 | D108: 15.63290138
A109: 1986-10-01 | B109: 1.102 | C109: 6.38 | D109: 14.57641263
A110: 1986-11-01 | B110: 1.104 | C110: 5.66 | D110: 12.90799913
A111: 1986-12-01 | B111: 1.108 | C111: 5.28 | D111: 11.99791365
A112: 1987-01-01 | B112: 1.114 | C112: 5.3 | D112: 11.97849479
A113: 1987-02-01 | B113: 1.118 | C113: 5.34 | D113: 12.02571821
A114: 1987-03-01 | B114: 1.122 | C114: 5.36 | D114: 12.02772535
A115: 1987-04-01 | B115: 1.127 | C115: 5.46 | D115: 12.19776596
A116: 1987-05-01 | B116: 1.13 | C116: 5.98 | D116: 13.32399037
A117: 1987-06-01 | B117: 1.135 | C117: 6.55 | D117: 14.52971207
A118: 1987-07-01 | B118: 1.138 | C118: 6.78 | D118: 15.00026742
A119: 1987-08-01 | B119: 1.143 | C119: 6.84 | D119: 15.06681449
A120: 1987-09-01 | B120: 1.147 | C120: 6.64 | D120: 14.57525733
A121: 1987-10-01 | B121: 1.15 | C121: 5.85 | D121: 12.80765426
A122: 1987-11-01 | B122: 1.154 | C122: 5.42 | D122: 11.82510614
A123: 1987-12-01 | B123: 1.156 | C123: 5.13 | D123: 11.17303349
A124: 1988-01-01 | B124: 1.16 | C124: 5.08 | D124: 11.02598234
A125: 1988-02-01 | B125: 1.162 | C125: 5.09 | D125: 11.02867208
A126: 1988-03-01 | B126: 1.165 | C126: 5.18 | D126: 11.1947759
A127: 1988-04-01 | B127: 1.172 | C127: 5.35 | D127: 11.49311468
A128: 1988-05-01 | B128: 1.175 | C128: 5.87 | D128: 12.5780062
A129: 1988-06-01 | B129: 1.18 | C129: 6.5 | D129: 13.86892881
A130: 1988-07-01 | B130: 1.185 | C130: 6.74 | D130: 14.32033296
A131: 1988-08-01 | B131: 1.19 | C131: 6.92 | D131: 14.64099872
A132: 1988-09-01 | B132: 1.195 | C132: 6.79 | D132: 14.30584248
A133: 1988-10-01 | B133: 1.199 | C133: 5.95 | D133: 12.49422585
A134: 1988-11-01 | B134: 1.203 | C134: 5.56 | D134: 11.63645606
A135: 1988-12-01 | B135: 1.207 | C135: 5.39 | D135: 11.24328099
A136: 1989-01-01 | B136: 1.212 | C136: 5.41 | D136: 11.23844475
A137: 1989-02-01 | B137: 1.216 | C137: 5.38 | D137: 11.13936079
A138: 1989-03-01 | B138: 1.222 | C138: 5.45 | D138: 11.228891
A139: 1989-04-01 | B139: 1.231 | C139: 5.54 | D139: 11.33087064
A140: 1989-05-01 | B140: 1.237 | C140: 5.93 | D140: 12.06970244
A141: 1989-06-01 | B141: 1.241 | C141: 6.58 | D141: 13.34952097
A142: 1989-07-01 | B142: 1.245 | C142: 6.92 | D142: 13.99420761
A143: 1989-08-01 | B143: 1.245 | C143: 7.07 | D143: 14.29755027
A144: 1989-09-01 | B144: 1.248 | C144: 6.8 | D144: 13.71847692
A145: 1989-10-01 | B145: 1.254 | C145: 6.06 | D145: 12.16708823
A146: 1989-11-01 | B146: 1.259 | C146: 5.56 | D146: 11.11886945
A147: 1989-12-01 | B147: 1.263 | C147: 5.3 | D147: 10.56535487
A148: 1990-01-01 | B148: 1.275 | C148: 5.43 | D148: 10.72262739
A149: 1990-02-01 | B149: 1.28 | C149: 5.65 | D149: 11.11347938
A150: 1990-03-01 | B150: 1.286 | C150: 5.6 | D150: 10.96373748
A151: 1990-04-01 | B151: 1.289 | C151: 5.64 | D151: 11.01635078
A152: 1990-05-01 | B152: 1.291 | C152: 6 | D152: 11.70136638
A153: 1990-06-01 | B153: 1.299 | C153: 6.56 | D153: 12.71470411
A154: 1990-07-01 | B154: 1.305 | C154: 7.04 | D154: 13.58231246
A155: 1990-08-01 | B155: 1.316 | C155: 7.08 | D155: 13.54530967
A156: 1990-09-01 | B156: 1.325 | C156: 6.9 | D156: 13.11127064
A157: 1990-10-01 | B157: 1.334 | C157: 6.14 | D157: 11.58841691
A158: 1990-11-01 | B158: 1.337 | C158: 5.69 | D158: 10.71500625
A159: 1990-12-01 | B159: 1.342 | C159: 5.62 | D159: 10.54375654
A160: 1991-01-01 | B160: 1.347 | C160: 5.54 | D160: 10.35508668
A161: 1991-02-01 | B161: 1.348 | C161: 5.56 | D161: 10.38476012
A162: 1991-03-01 | B162: 1.348 | C162: 5.6 | D162: 10.45947062
A163: 1991-04-01 | B163: 1.351 | C163: 5.9 | D163: 10.99532909
A164: 1991-05-01 | B164: 1.356 | C164: 6.28 | D164: 11.66034832
A165: 1991-06-01 | B165: 1.36 | C165: 6.97 | D165: 12.903438
A166: 1991-07-01 | B166: 1.362 | C166: 7.23 | D166: 13.36511683
A167: 1991-08-01 | B167: 1.366 | C167: 7.36 | D167: 13.56558993
A168: 1991-09-01 | B168: 1.37 | C168: 6.92 | D168: =C168*$B$508/B168 -> 12.71736385
A169: 1991-10-01 | B169: 1.372 | C169: 6.2 | D169: 11.37756035
A170: 1991-11-01 | B170: 1.378 | C170: 5.51 | D170: 10.0673218
A171: 1991-12-01 | B171: 1.382 | C171: 5.51 | D171: 10.03818339
A172: 1992-01-01 | B172: 1.383 | C172: 5.53 | D172: 10.06733501
A173: 1992-02-01 | B173: 1.386 | C173: 5.54 | D173: 10.06370978
A174: 1992-03-01 | B174: 1.391 | C174: 5.5 | D174: 9.955134436
A175: 1992-04-01 | B175: 1.394 | C175: 5.62 | D175: 10.15044568
A176: 1992-05-01 | B176: 1.397 | C176: 6.15 | D176: 11.0838408
A177: 1992-06-01 | B177: 1.401 | C177: 6.84 | D177: 12.29219769
A178: 1992-07-01 | B178: 1.405 | C178: 7.27 | D178: 13.02775721
A179: 1992-08-01 | B179: 1.408 | C179: 7.45 | D179: 13.32186989
A180: 1992-09-01 | B180: 1.411 | C180: 7.15 | D180: 12.75823501
A181: 1992-10-01 | B181: 1.417 | C181: 6.52 | D181: 11.58482066
A182: 1992-11-01 | B182: 1.421 | C182: 6.02 | D182: 10.66630463
A183: 1992-12-01 | B183: 1.423 | C183: 5.74 | D183: 10.15590342
A184: 1993-01-01 | B184: 1.428 | C184: 5.73 | D184: 10.10271227
A185: 1993-02-01 | B185: 1.431 | C185: 5.73 | D185: 10.08153258
A186: 1993-03-01 | B186: 1.433 | C186: 5.67 | D186: 9.962043601
A187: 1993-04-01 | B187: 1.438 | C187: 6.02 | D187: 10.54020784
A188: 1993-05-01 | B188: 1.442 | C188: 6.78 | D188: 11.83793642
A189: 1993-06-01 | B189: 1.443 | C189: 7.37 | D189: 12.85916374
A190: 1993-07-01 | B190: 1.445 | C190: 7.86 | D190: 13.69513345
A191: 1993-08-01 | B191: 1.448 | C191: 8.13 | D191: 14.1362284
A192: 1993-09-01 | B192: 1.45 | C192: 7.75 | D192: 13.45690759
A193: 1993-10-01 | B193: 1.456 | C193: 6.79 | D193: 11.74140231
A194: 1993-11-01 | B194: 1.46 | C194: 6.17 | D194: 10.64005512
A195: 1993-12-01 | B195: 1.463 | C195: 6.07 | D195: 10.44614223
A196: 1994-01-01 | B196: 1.463 | C196: 5.93 | D196: 10.20520979
A197: 1994-02-01 | B197: 1.467 | C197: 6.04 | D197: 10.36617162
A198: 1994-03-01 | B198: 1.471 | C198: 6.3 | D198: 10.78299606
A199: 1994-04-01 | B199: 1.472 | C199: 6.6 | D199: 11.28879783
A200: 1994-05-01 | B200: 1.475 | C200: 6.84 | D200: 11.67550438
A201: 1994-06-01 | B201: 1.479 | C201: 7.66 | D201: 13.03983708
A202: 1994-07-01 | B202: 1.484 | C202: 8.1 | D202: 13.74240323
A203: 1994-08-01 | B203: 1.49 | C203: 8.22 | D203: 13.88983603
A204: 1994-09-01 | B204: 1.493 | C204: 7.84 | D204: 13.22110714
A205: 1994-10-01 | B205: 1.494 | C205: 6.86 | D205: 11.56072546
A206: 1994-11-01 | B206: 1.498 | C206: 6.27 | D206: 10.53822088
A207: 1994-12-01 | B207: 1.501 | C207: 6.06 | D207: 10.16490915
A208: 1995-01-01 | B208: 1.505 | C208: 5.85 | D208: 9.786579668
A209: 1995-02-01 | B209: 1.509 | C209: 5.76 | D209: 9.610474115
A210: 1995-03-01 | B210: 1.512 | C210: 5.84 | D210: 9.724619683
A211: 1995-04-01 | B211: 1.518 | C211: 6.06 | D211: 10.05107289
A212: 1995-05-01 | B212: 1.521 | C212: 6.54 | D212: 10.8258026
A213: 1995-06-01 | B213: 1.524 | C213: 7.49 | D213: 12.37395181
A214: 1995-07-01 | B214: 1.526 | C214: 7.82 | D214: 12.90220058
A215: 1995-08-01 | B215: 1.529 | C215: 8.13 | D215: 13.38735037
A216: 1995-09-01 | B216: 1.531 | C216: 7.73 | D216: 12.71205821
A217: 1995-10-01 | B217: 1.535 | C217: 6.62 | D217: 10.85828357
A218: 1995-11-01 | B218: 1.537 | C218: 5.61 | D218: 9.189683696
A219: 1995-12-01 | B219: 1.539 | C219: 5.54 | D219: 9.063224016
A220: 1996-01-01 | B220: 1.547 | C220: 5.64 | D220: 9.179105469
A221: 1996-02-01 | B221: 1.55 | C221: 5.82 | D221: 9.453722632
A222: 1996-03-01 | B222: 1.555 | C222: 5.93 | D222: 9.601428887
A223: 1996-04-01 | B223: 1.561 | C223: 6.27 | D223: 10.11291152
A224: 1996-05-01 | B224: 1.564 | C224: 6.84 | D224: 11.01110547
A225: 1996-06-01 | B225: 1.567 | C225: 7.83 | D225: 12.58068636
A226: 1996-07-01 | B226: 1.57 | C226: 8.64 | D226: 13.85561029
A227: 1996-08-01 | B227: 1.572 | C227: 8.73 | D227: 13.98212794
A228: 1996-09-01 | B228: 1.577 | C228: 7.99 | D228: 12.75635673
A229: 1996-10-01 | B229: 1.582 | C229: 7.05 | D229: 11.22003489
A230: 1996-11-01 | B230: 1.587 | C230: 6.37 | D230: 10.10587856
A231: 1996-12-01 | B231: 1.591 | C231: 6.47 | D231: 10.2387201
A232: 1997-01-01 | B232: 1.594 | C232: 6.74 | D232: =C232*$B$508/B232 -> 10.6459188
A233: 1997-02-01 | B233: 1.597 | C233: 6.79 | D233: 10.7047475
A234: 1997-03-01 | B234: 1.598 | C234: 6.52 | D234: 10.27264761
... 279 more rows

Sheet coal, raw
B1: Coal Prices, Real Dollars
B2: 19991231 | C2: 16.99
B3: 20001231 | C3: 16.78
B4: 20011231 | C4: 16.97
B5: 20021231 | C5: 17.26
B6: 20031231 | C6: 16.78
B7: 20041231 | C7: 18.21
B8: 20051231 | C8: 20.87
B9: 20061231 | C9: 21.56
B10: 20071231 | C10: 21.87
B11: 20081231 | C11: 26.62
B12: 20091231
B13: 20101231
B14: 20111231
B15: 20121231
B16: 20131231
B17: 20141231
B18: 20151231
B19: 20161231
B20: 20171231
